Workbook

Sheet Feuil3
A1: Réf | B1: مخزن1 | C1: Type de facture | D1: كودالمخزن | E1: le produit | F1: quantité | G1: تحويل | H1: اسم العميل | I1: 3297.00 | J1: -276.00
A2: 1 | B2: 2023-06-22 | C2: Sortie | D2: مخزن1 | E2: بسكوت اهلاوى 2ج *12 علبة | F2: 5 | G2: مخزن14 | H2: ت صادر355من مخزن1لمخزن14 | I2: =SUMPRODUCT($F$2:F2,--($D$2:D2=D2),--($C$2:C2="Entree"))-SUMPRODUCT($F$2:F2,--($D$2:D2=D2),--($C$2:C2="Sortie")) -> -5
A3: 2 | B3: 2023-06-22 | C3: Entree | D3: مخزن1 | E3: بسكوت اهلاوى 2ج *12 علبة | F3: 1620 | G3: سنيوريتا فرع اسيوط | H3: ف_شراء رقم 46 سنيوريتا فرع اسيوط | I3: =SUMPRODUCT($F$2:F3,--($D$2:D3=D3),--($C$2:C3="Entree"))-SUMPRODUCT($F$2:F3,--($D$2:D3=D3),--($C$2:C3="Sortie")) -> 1615
A4: 424 | B4: 2023-06-22 | C4: Entree | D4: مخزن14 | E4: بسكوت اهلاوى 2ج *12 علبة | F4: 10 | G4: مخزن14 | H4: تحويل وارد502من مخزن1لمخزن14 | I4: =SUMPRODUCT($F$2:F4,--($D$2:D4=D4),--($C$2:C4="Entree"))-SUMPRODUCT($F$2:F4,--($D$2:D4=D4),--($C$2:C4="Sortie")) -> 10
A5: 345 | B5: 2023-06-24 | C5: Entree | D5: مخزن14 | E5: بسكوت اهلاوى 2ج *12 علبة | F5: 5 | G5: مخزن14 | H5: تحويل وارد355من مخزن1لمخزن14 | I5: =SUMPRODUCT($F$2:F5,--($D$2:D5=D5),--($C$2:C5="Entree"))-SUMPRODUCT($F$2:F5,--($D$2:D5=D5),--($C$2:C5="Sortie")) -> 15
A6: 380 | B6: 2023-06-24 | C6: Sortie | D6: مخزن14 | E6: بسكوت اهلاوى 2ج *12 علبة | F6: 4 | G6: مخزن14 | H6: ف_بيع رقم 575 اولاد الشيخ | I6: =SUMPRODUCT($F$2:F6,--($D$2:D6=D6),--($C$2:C6="Entree"))-SUMPRODUCT($F$2:F6,--($D$2:D6=D6),--($C$2:C6="Sortie")) -> 11
A7: 425 | B7: 2023-06-24 | C7: Sortie | D7: مخزن14 | E7: بسكوت اهلاوى 2ج *12 علبة | F7: 2 | G7: مخزن14 | H7: ف_بيع رقم 714 هايبر بن سعود | I7: =SUMPRODUCT($F$2:F7,--($D$2:D7=D7),--($C$2:C7="Entree"))-SUMPRODUCT($F$2:F7,--($D$2:D7=D7),--($C$2:C7="Sortie")) -> 9
A8: 3 | B8: 2023-06-25 | C8: Sortie | D8: مخزن1 | E8: بسكوت اهلاوى 2ج *12 علبة | F8: 125 | G8: مخزن11 | H8: ت صادر357من مخزن1لمخزن11 | I8: =SUMPRODUCT($F$2:F8,--($D$2:D8=D8),--($C$2:C8="Entree"))-SUMPRODUCT($F$2:F8,--($D$2:D8=D8),--($C$2:C8="Sortie")) -> 1490
A9: 53 | B9: 2023-06-25 | C9: Sortie | D9: مخزن1 | E9: بسكوت اهلاوى 2ج *12 علبة | F9: 50 | G9: سنيوريتا فرع الاقصر | H9: ف_بيع رقم 577 سنيوريتا فرع الاقصر | I9: =SUMPRODUCT($F$2:F9,--($D$2:D9=D9),--($C$2:C9="Entree"))-SUMPRODUCT($F$2:F9,--($D$2:D9=D9),--($C$2:C9="Sortie")) -> 1440
A10: 294 | B10: 2023-06-25 | C10: Entree | D10: مخزن12 | E10: بسكوت اهلاوى 2ج *12 علبة | F10: 75 | G10: مخزن12 | H10: تحويل وارد461من مخزن1لمخزن12 | I10: =SUMPRODUCT($F$2:F10,--($D$2:D10=D10),--($C$2:C10="Entree"))-SUMPRODUCT($F$2:F10,--($D$2:D10=D10),--($C$2:C10="Sortie")) -> 75
A11: 122 | B11: 2023-06-25 | C11: Sortie | D11: مخزن1 | E11: بسكوت اهلاوى 2ج *12 علبة | F11: 15 | G11: مخزن14 | H11: ت صادر505من مخزن1لمخزن14 | I11: =SUMPRODUCT($F$2:F11,--($D$2:D11=D11),--($C$2:C11="Entree"))-SUMPRODUCT($F$2:F11,--($D$2:D11=D11),--($C$2:C11="Sortie")) -> 1425
A12: 156 | B12: 2023-06-26 | C12: Entree | D12: مخزن11 | E12: بسكوت اهلاوى 2ج *12 علبة | F12: 125 | G12: مخزن11 | H12: تحويل وارد357من مخزن1لمخزن11 | I12: =SUMPRODUCT($F$2:F12,--($D$2:D12=D12),--($C$2:C12="Entree"))-SUMPRODUCT($F$2:F12,--($D$2:D12=D12),--($C$2:C12="Sortie")) -> 125
A13: 346 | B13: 2023-06-26 | C13: Sortie | D13: مخزن14 | E13: بسكوت اهلاوى 2ج *12 علبة | F13: 1 | G13: مخزن14 | H13: ف_بيع رقم 458 ماركت بكار - ابوبكر | I13: =SUMPRODUCT($F$2:F13,--($D$2:D13=D13),--($C$2:C13="Entree"))-SUMPRODUCT($F$2:F13,--($D$2:D13=D13),--($C$2:C13="Sortie")) -> 8
A14: 4 | B14: 2023-06-26 | C14: Sortie | D14: مخزن1 | E14: بسكوت اهلاوى 2ج *12 علبة | F14: 100 | G14: مخزن12 | H14: ت صادر363من مخزن1لمخزن12 | I14: =SUMPRODUCT($F$2:F14,--($D$2:D14=D14),--($C$2:C14="Entree"))-SUMPRODUCT($F$2:F14,--($D$2:D14=D14),--($C$2:C14="Sortie")) -> 1325
A15: 54 | B15: 2023-06-26 | C15: Sortie | D15: مخزن1 | E15: بسكوت اهلاوى 2ج *12 علبة | F15: 10 | G15: مخزن14 | H15: ت صادر425من مخزن1لمخزن14 | I15: =SUMPRODUCT($F$2:F15,--($D$2:D15=D15),--($C$2:C15="Entree"))-SUMPRODUCT($F$2:F15,--($D$2:D15=D15),--($C$2:C15="Sortie")) -> 1315
A16: 404 | B16: 2023-06-26 | C16: Sortie | D16: مخزن14 | E16: بسكوت اهلاوى 2ج *12 علبة | F16: 5 | G16: مخزن14 | H16: ف_بيع رقم 659 دولسى ماركت - ابوبكر | I16: =SUMPRODUCT($F$2:F16,--($D$2:D16=D16),--($C$2:C16="Entree"))-SUMPRODUCT($F$2:F16,--($D$2:D16=D16),--($C$2:C16="Sortie")) -> 3
A17: 123 | B17: 2023-06-26 | C17: Sortie | D17: مخزن1 | E17: بسكوت اهلاوى 2ج *12 علبة | F17: 55 | G17: مخزن12 | H17: ت صادر504من مخزن1لمخزن12 | I17: =SUMPRODUCT($F$2:F17,--($D$2:D17=D17),--($C$2:C17="Entree"))-SUMPRODUCT($F$2:F17,--($D$2:D17=D17),--($C$2:C17="Sortie")) -> 1260
A18: 124 | B18: 2023-06-26 | C18: Sortie | D18: مخزن1 | E18: بسكوت اهلاوى 2ج *12 علبة | F18: 20 | G18: مخزن11 | H18: ت صادر503من مخزن1لمخزن11 | I18: =SUMPRODUCT($F$2:F18,--($D$2:D18=D18),--($C$2:C18="Entree"))-SUMPRODUCT($F$2:F18,--($D$2:D18=D18),--($C$2:C18="Sortie")) -> 1240
A19: 157 | B19: 2023-06-27 | C19: Sortie | D19: مخزن11 | E19: بسكوت اهلاوى 2ج *12 علبة | F19: 125 | G19: مخزن11 | H19: ف_بيع رقم 461 المراسى - حسن | I19: =SUMPRODUCT($F$2:F19,--($D$2:D19=D19),--($C$2:C19="Entree"))-SUMPRODUCT($F$2:F19,--($D$2:D19=D19),--($C$2:C19="Sortie")) -> 0
A20: 248 | B20: 2023-06-27 | C20: Entree | D20: مخزن12 | E20: بسكوت اهلاوى 2ج *12 علبة | F20: 100 | G20: مخزن12 | H20: تحويل وارد363من مخزن1لمخزن12 | I20: =SUMPRODUCT($F$2:F20,--($D$2:D20=D20),--($C$2:C20="Entree"))-SUMPRODUCT($F$2:F20,--($D$2:D20=D20),--($C$2:C20="Sortie")) -> 175
A21: 347 | B21: 2023-06-27 | C21: Sortie | D21: مخزن14 | E21: بسكوت اهلاوى 2ج *12 علبة | F21: 3 | G21: مخزن14 | H21: ف_بيع رقم 462 ماركت ابوحمزة - ابوبكر | I21: =SUMPRODUCT($F$2:F21,--($D$2:D21=D21),--($C$2:C21="Entree"))-SUMPRODUCT($F$2:F21,--($D$2:D21=D21),--($C$2:C21="Sortie")) -> 0
A22: 55 | B22: 2023-06-27 | C22: Sortie | D22: مخزن1 | E22: بسكوت اهلاوى 2ج *12 علبة | F22: 129 | G22: مخزن11 | H22: ت صادر426من مخزن1لمخزن11 | I22: =SUMPRODUCT($F$2:F22,--($D$2:D22=D22),--($C$2:C22="Entree"))-SUMPRODUCT($F$2:F22,--($D$2:D22=D22),--($C$2:C22="Sortie")) -> 1111
A23: 187 | B23: 2023-06-27 | C23: Sortie | D23: مخزن11 | E23: بسكوت اهلاوى 2ج *12 علبة | F23: 100 | G23: مخزن11 | H23: ف_بيع رقم 579 احمد جمال | I23: =SUMPRODUCT($F$2:F23,--($D$2:D23=D23),--($C$2:C23="Entree"))-SUMPRODUCT($F$2:F23,--($D$2:D23=D23),--($C$2:C23="Sortie")) -> -100
A24: 84 | B24: 2023-06-27 | C24: Sortie | D24: مخزن1 | E24: بسكوت اهلاوى 2ج *12 علبة | F24: 125 | G24: مخزن12 | H24: ت صادر463من مخزن1لمخزن12 | I24: =SUMPRODUCT($F$2:F24,--($D$2:D24=D24),--($C$2:C24="Entree"))-SUMPRODUCT($F$2:F24,--($D$2:D24=D24),--($C$2:C24="Sortie")) -> 986
A25: 231 | B25: 2023-06-27 | C25: Entree | D25: مخزن11 | E25: بسكوت اهلاوى 2ج *12 علبة | F25: 20 | G25: مخزن11 | H25: تحويل وارد503من مخزن1لمخزن11 | I25: =SUMPRODUCT($F$2:F25,--($D$2:D25=D25),--($C$2:C25="Entree"))-SUMPRODUCT($F$2:F25,--($D$2:D25=D25),--($C$2:C25="Sortie")) -> -80
A26: 5 | B26: 2023-06-30 | C26: Sortie | D26: مخزن1 | E26: بسكوت اهلاوى 2ج *12 علبة | F26: 10 | G26: مخزن14 | H26: ت صادر360من مخزن1لمخزن14 | I26: =SUMPRODUCT($F$2:F26,--($D$2:D26=D26),--($C$2:C26="Entree"))-SUMPRODUCT($F$2:F26,--($D$2:D26=D26),--($C$2:C26="Sortie")) -> 976
A27: 188 | B27: 2023-06-30 | C27: Entree | D27: مخزن11 | E27: بسكوت اهلاوى 2ج *12 علبة | F27: 129 | G27: مخزن11 | H27: تحويل وارد426من مخزن1لمخزن11 | I27: =SUMPRODUCT($F$2:F27,--($D$2:D27=D27),--($C$2:C27="Entree"))-SUMPRODUCT($F$2:F27,--($D$2:D27=D27),--($C$2:C27="Sortie")) -> 49
A28: 6 | B28: 2023-07-01 | C28: Sortie | D28: مخزن1 | E28: بسكوت اهلاوى 2ج *12 علبة | F28: 65 | G28: مخزن11 | H28: ت صادر361من مخزن1لمخزن11 | I28: =SUMPRODUCT($F$2:F28,--($D$2:D28=D28),--($C$2:C28="Entree"))-SUMPRODUCT($F$2:F28,--($D$2:D28=D28),--($C$2:C28="Sortie")) -> 911
A29: 232 | B29: 2023-07-01 | C29: Sortie | D29: مخزن11 | E29: بسكوت اهلاوى 2ج *12 علبة | F29: 100 | G29: مخزن11 | H29: ف_بيع رقم 720 اخر ساعة حسن | I29: =SUMPRODUCT($F$2:F29,--($D$2:D29=D29),--($C$2:C29="Entree"))-SUMPRODUCT($F$2:F29,--($D$2:D29=D29),--($C$2:C29="Sortie")) -> -51
A30: 316 | B30: 2023-07-01 | C30: Entree | D30: مخزن12 | E30: بسكوت اهلاوى 2ج *12 علبة | F30: 55 | G30: مخزن12 | H30: تحويل وارد504من مخزن1لمخزن12 | I30: =SUMPRODUCT($F$2:F30,--($D$2:D30=D30),--($C$2:C30="Entree"))-SUMPRODUCT($F$2:F30,--($D$2:D30=D30),--($C$2:C30="Sortie")) -> 230
A31: 7 | B31: 2023-07-02 | C31: Sortie | D31: مخزن1 | E31: بسكوت اهلاوى 2ج *12 علبة | F31: 120 | G31: مخزن12 | H31: ت صادر366من مخزن1لمخزن12 | I31: =SUMPRODUCT($F$2:F31,--($D$2:D31=D31),--($C$2:C31="Entree"))-SUMPRODUCT($F$2:F31,--($D$2:D31=D31),--($C$2:C31="Sortie")) -> 791
A32: 158 | B32: 2023-07-02 | C32: Entree | D32: مخزن11 | E32: بسكوت اهلاوى 2ج *12 علبة | F32: 65 | G32: مخزن11 | H32: تحويل وارد361من مخزن1لمخزن11 | I32: =SUMPRODUCT($F$2:F32,--($D$2:D32=D32),--($C$2:C32="Entree"))-SUMPRODUCT($F$2:F32,--($D$2:D32=D32),--($C$2:C32="Sortie")) -> 14
A33: 249 | B33: 2023-07-02 | C33: Entree | D33: مخزن12 | E33: بسكوت اهلاوى 2ج *12 علبة | F33: 120 | G33: مخزن12 | H33: تحويل وارد366من مخزن1لمخزن12 | I33: =SUMPRODUCT($F$2:F33,--($D$2:D33=D33),--($C$2:C33="Entree"))-SUMPRODUCT($F$2:F33,--($D$2:D33=D33),--($C$2:C33="Sortie")) -> 350
A34: 348 | B34: 2023-07-02 | C34: Entree | D34: مخزن14 | E34: بسكوت اهلاوى 2ج *12 علبة | F34: 10 | G34: مخزن14 | H34: تحويل وارد360من مخزن1لمخزن14 | I34: =SUMPRODUCT($F$2:F34,--($D$2:D34=D34),--($C$2:C34="Entree"))-SUMPRODUCT($F$2:F34,--($D$2:D34=D34),--($C$2:C34="Sortie")) -> 10
A35: 349 | B35: 2023-07-02 | C35: Sortie | D35: مخزن14 | E35: بسكوت اهلاوى 2ج *12 علبة | F35: 1 | G35: مخزن14 | H35: ف_بيع رقم 463 ماركت الهدى - ابوبكر | I35: =SUMPRODUCT($F$2:F35,--($D$2:D35=D35),--($C$2:C35="Entree"))-SUMPRODUCT($F$2:F35,--($D$2:D35=D35),--($C$2:C35="Sortie")) -> 9
A36: 8 | B36: 2023-07-02 | C36: Entree | D36: مخزن1 | E36: بسكوت اهلاوى 2ج *12 علبة | F36: 9 | G36: مخزن14 | H36: تحويل وارد370من مخزن14لمخزن1 | I36: =SUMPRODUCT($F$2:F36,--($D$2:D36=D36),--($C$2:C36="Entree"))-SUMPRODUCT($F$2:F36,--($D$2:D36=D36),--($C$2:C36="Sortie")) -> 800
A37: 11 | B37: 2023-07-02 | C37: Sortie | D37: مخزن1 | E37: بسكوت اهلاوى 2ج *12 علبة | F37: 20 | G37: مخزن11 | H37: ت صادر365من مخزن1لمخزن11 | I37: =SUMPRODUCT($F$2:F37,--($D$2:D37=D37),--($C$2:C37="Entree"))-SUMPRODUCT($F$2:F37,--($D$2:D37=D37),--($C$2:C37="Sortie")) -> 780
A38: 381 | B38: 2023-07-02 | C38: Sortie | D38: مخزن14 | E38: بسكوت اهلاوى 2ج *12 علبة | F38: 2 | G38: مخزن14 | H38: ف_بيع رقم 578 ماركت العبد - ابوبكر | I38: =SUMPRODUCT($F$2:F38,--($D$2:D38=D38),--($C$2:C38="Entree"))-SUMPRODUCT($F$2:F38,--($D$2:D38=D38),--($C$2:C38="Sortie")) -> 7
A39: 382 | B39: 2023-07-02 | C39: Entree | D39: مخزن14 | E39: بسكوت اهلاوى 2ج *12 علبة | F39: 10 | G39: مخزن14 | H39: تحويل وارد425من مخزن1لمخزن14 | I39: =SUMPRODUCT($F$2:F39,--($D$2:D39=D39),--($C$2:C39="Entree"))-SUMPRODUCT($F$2:F39,--($D$2:D39=D39),--($C$2:C39="Sortie")) -> 17
A40: 210 | B40: 2023-07-02 | C40: Sortie | D40: مخزن11 | E40: بسكوت اهلاوى 2ج *12 علبة | F40: 100 | G40: مخزن11 | H40: ف_بيع رقم 662 عدنان الجبلاو - حسن | I40: =SUMPRODUCT($F$2:F40,--($D$2:D40=D40),--($C$2:C40="Entree"))-SUMPRODUCT($F$2:F40,--($D$2:D40=D40),--($C$2:C40="Sortie")) -> -86
A41: 295 | B41: 2023-07-02 | C41: Entree | D41: مخزن12 | E41: بسكوت اهلاوى 2ج *12 علبة | F41: 125 | G41: مخزن12 | H41: تحويل وارد463من مخزن1لمخزن12 | I41: =SUMPRODUCT($F$2:F41,--($D$2:D41=D41),--($C$2:C41="Entree"))-SUMPRODUCT($F$2:F41,--($D$2:D41=D41),--($C$2:C41="Sortie")) -> 475
A42: 296 | B42: 2023-07-02 | C42: Sortie | D42: مخزن12 | E42: بسكوت اهلاوى 2ج *12 علبة | F42: 100 | G42: مخزن12 | H42: ف_بيع رقم 664 وليد شركة | I42: =SUMPRODUCT($F$2:F42,--($D$2:D42=D42),--($C$2:C42="Entree"))-SUMPRODUCT($F$2:F42,--($D$2:D42=D42),--($C$2:C42="Sortie")) -> 375
A43: 426 | B43: 2023-07-02 | C43: Sortie | D43: مخزن14 | E43: بسكوت اهلاوى 2ج *12 علبة | F43: 1 | G43: مخزن14 | H43: ف_بيع رقم 716 عبدلله ال البيت - ابوبكر | I43: =SUMPRODUCT($F$2:F43,--($D$2:D43=D43),--($C$2:C43="Entree"))-SUMPRODUCT($F$2:F43,--($D$2:D43=D43),--($C$2:C43="Sortie")) -> 16
A44: 427 | B44: 2023-07-02 | C44: Entree | D44: مخزن14 | E44: بسكوت اهلاوى 2ج *12 علبة | F44: 15 | G44: مخزن14 | H44: تحويل وارد505من مخزن1لمخزن14 | I44: =SUMPRODUCT($F$2:F44,--($D$2:D44=D44),--($C$2:C44="Entree"))-SUMPRODUCT($F$2:F44,--($D$2:D44=D44),--($C$2:C44="Sortie")) -> 31
A45: 428 | B45: 2023-07-02 | C45: Sortie | D45: مخزن14 | E45: بسكوت اهلاوى 2ج *12 علبة | F45: 1 | G45: مخزن14 | H45: ف_بيع رقم 718 ماركت الرحمن الرحيم - ابوبكر | I45: =SUMPRODUCT($F$2:F45,--($D$2:D45=D45),--($C$2:C45="Entree"))-SUMPRODUCT($F$2:F45,--($D$2:D45=D45),--($C$2:C45="Sortie")) -> 30
A46: 125 | B46: 2023-07-02 | C46: Sortie | D46: مخزن1 | E46: بسكوت اهلاوى 2ج *12 علبة | F46: 64 | G46: مخزن12 | H46: ت صادر506من مخزن1لمخزن12 | I46: =SUMPRODUCT($F$2:F46,--($D$2:D46=D46),--($C$2:C46="Entree"))-SUMPRODUCT($F$2:F46,--($D$2:D46=D46),--($C$2:C46="Sortie")) -> 716
A47: 233 | B47: 2023-07-02 | C47: Sortie | D47: مخزن11 | E47: بسكوت اهلاوى 2ج *12 علبة | F47: 54 | G47: مخزن11 | H47: ف_بيع رقم 724 بسام جرجاوى - حسن | I47: =SUMPRODUCT($F$2:F47,--($D$2:D47=D47),--($C$2:C47="Entree"))-SUMPRODUCT($F$2:F47,--($D$2:D47=D47),--($C$2:C47="Sortie")) -> -140
A48: 12 | B48: 2023-07-03 | C48: Entree | D48: مخزن12 | E48: بسكوت اهلاوى 2ج *12 علبة | F48: 220 | G48: مخزن12 | H48: تحويل وارد369من مخزن12لمخزن1 | I48: =SUMPRODUCT($F$2:F48,--($D$2:D48=D48),--($C$2:C48="Entree"))-SUMPRODUCT($F$2:F48,--($D$2:D48=D48),--($C$2:C48="Sortie")) -> 595
A49: 159 | B49: 2023-07-03 | C49: Entree | D49: مخزن11 | E49: بسكوت اهلاوى 2ج *12 علبة | F49: 20 | G49: مخزن11 | H49: تحويل وارد365من مخزن1لمخزن11 | I49: =SUMPRODUCT($F$2:F49,--($D$2:D49=D49),--($C$2:C49="Entree"))-SUMPRODUCT($F$2:F49,--($D$2:D49=D49),--($C$2:C49="Sortie")) -> -120
A50: 160 | B50: 2023-07-03 | C50: Sortie | D50: مخزن11 | E50: بسكوت اهلاوى 2ج *12 علبة | F50: 54 | G50: مخزن11 | H50: ف_بيع رقم 466 اخر ساعة حسن | I50: =SUMPRODUCT($F$2:F50,--($D$2:D50=D50),--($C$2:C50="Entree"))-SUMPRODUCT($F$2:F50,--($D$2:D50=D50),--($C$2:C50="Sortie")) -> -174
A51: 58 | B51: 2023-07-03 | C51: Sortie | D51: مخزن1 | E51: بسكوت اهلاوى 2ج *12 علبة | F51: 200 | G51: مخزن11 | H51: ت صادر428من مخزن1لمخزن11 | I51: =SUMPRODUCT($F$2:F51,--($D$2:D51=D51),--($C$2:C51="Entree"))-SUMPRODUCT($F$2:F51,--($D$2:D51=D51),--($C$2:C51="Sortie")) -> 516
A52: 189 | B52: 2023-07-03 | C52: Entree | D52: مخزن11 | E52: بسكوت اهلاوى 2ج *12 علبة | F52: 200 | G52: مخزن11 | H52: تحويل وارد428من مخزن1لمخزن11 | I52: =SUMPRODUCT($F$2:F52,--($D$2:D52=D52),--($C$2:C52="Entree"))-SUMPRODUCT($F$2:F52,--($D$2:D52=D52),--($C$2:C52="Sortie")) -> 26
A53: 297 | B53: 2023-07-03 | C53: Sortie | D53: مخزن12 | E53: بسكوت اهلاوى 2ج *12 علبة | F53: 100 | G53: مخزن12 | H53: ف_بيع رقم 663 احمد هستك | I53: =SUMPRODUCT($F$2:F53,--($D$2:D53=D53),--($C$2:C53="Entree"))-SUMPRODUCT($F$2:F53,--($D$2:D53=D53),--($C$2:C53="Sortie")) -> 495
A54: 405 | B54: 2023-07-03 | C54: Sortie | D54: مخزن14 | E54: بسكوت اهلاوى 2ج *12 علبة | F54: 3 | G54: مخزن14 | H54: ف_بيع رقم 666 ماركت الباشا | I54: =SUMPRODUCT($F$2:F54,--($D$2:D54=D54),--($C$2:C54="Entree"))-SUMPRODUCT($F$2:F54,--($D$2:D54=D54),--($C$2:C54="Sortie")) -> 27
A55: 317 | B55: 2023-07-03 | C55: Entree | D55: مخزن12 | E55: بسكوت اهلاوى 2ج *12 علبة | F55: 64 | G55: مخزن12 | H55: تحويل وارد506من مخزن1لمخزن12 | I55: =SUMPRODUCT($F$2:F55,--($D$2:D55=D55),--($C$2:C55="Entree"))-SUMPRODUCT($F$2:F55,--($D$2:D55=D55),--($C$2:C55="Sortie")) -> 559
A56: 318 | B56: 2023-07-03 | C56: Sortie | D56: مخزن12 | E56: بسكوت اهلاوى 2ج *12 علبة | F56: 115 | G56: مخزن12 | H56: ف_بيع رقم 721 محمد الدمرانى - سيد | I56: =SUMPRODUCT($F$2:F56,--($D$2:D56=D56),--($C$2:C56="Entree"))-SUMPRODUCT($F$2:F56,--($D$2:D56=D56),--($C$2:C56="Sortie")) -> 444
A57: 250 | B57: 2023-07-04 | C57: Sortie | D57: مخزن12 | E57: بسكوت اهلاوى 2ج *12 علبة | F57: 220 | G57: مخزن1 | H57: ت صادر369من مخزن12لمخزن1 | I57: =SUMPRODUCT($F$2:F57,--($D$2:D57=D57),--($C$2:C57="Entree"))-SUMPRODUCT($F$2:F57,--($D$2:D57=D57),--($C$2:C57="Sortie")) -> 224
A58: 85 | B58: 2023-07-04 | C58: Sortie | D58: مخزن1 | E58: بسكوت اهلاوى 2ج *12 علبة | F58: 10 | G58: مخزن14 | H58: ت صادر465من مخزن1لمخزن14 | I58: =SUMPRODUCT($F$2:F58,--($D$2:D58=D58),--($C$2:C58="Entree"))-SUMPRODUCT($F$2:F58,--($D$2:D58=D58),--($C$2:C58="Sortie")) -> 506
A59: 429 | B59: 2023-07-04 | C59: Sortie | D59: مخزن14 | E59: بسكوت اهلاوى 2ج *12 علبة | F59: 1 | G59: مخزن14 | H59: ف_بيع رقم 723 ماركت الكرمى | I59: =SUMPRODUCT($F$2:F59,--($D$2:D59=D59),--($C$2:C59="Entree"))-SUMPRODUCT($F$2:F59,--($D$2:D59=D59),--($C$2:C59="Sortie")) -> 26
A60: 350 | B60: 2023-07-05 | C60: Sortie | D60: مخزن14 | E60: بسكوت اهلاوى 2ج *12 علبة | F60: 9 | G60: مخزن1 | H60: ت صادر370من مخزن14لمخزن1 | I60: =SUMPRODUCT($F$2:F60,--($D$2:D60=D60),--($C$2:C60="Entree"))-SUMPRODUCT($F$2:F60,--($D$2:D60=D60),--($C$2:C60="Sortie")) -> 17
A61: 13 | B61: 2023-07-05 | C61: Entree | D61: مخزن11 | E61: بسكوت اهلاوى 2ج *12 علبة | F61: 31 | G61: مخزن11 | H61: تحويل وارد367من مخزن11لمخزن1 | I61: =SUMPRODUCT($F$2:F61,--($D$2:D61=D61),--($C$2:C61="Entree"))-SUMPRODUCT($F$2:F61,--($D$2:D61=D61),--($C$2:C61="Sortie")) -> 57
A62: 161 | B62: 2023-07-05 | C62: Sortie | D62: مخزن11 | E62: بسكوت اهلاوى 2ج *12 علبة | F62: 31 | G62: مخزن1 | H62: ت صادر367من مخزن11لمخزن1 | I62: =SUMPRODUCT($F$2:F62,--($D$2:D62=D62),--($C$2:C62="Entree"))-SUMPRODUCT($F$2:F62,--($D$2:D62=D62),--($C$2:C62="Sortie")) -> 26
A63: 15 | B63: 2023-07-05 | C63: Sortie | D63: مخزن1 | E63: بسكوت اهلاوى 2ج *12 علبة | F63: 9 | G63: مخزن14 | H63: ت صادر371من مخزن1لمخزن14 | I63: =SUMPRODUCT($F$2:F63,--($D$2:D63=D63),--($C$2:C63="Entree"))-SUMPRODUCT($F$2:F63,--($D$2:D63=D63),--($C$2:C63="Sortie")) -> 497
A64: 351 | B64: 2023-07-05 | C64: Entree | D64: مخزن14 | E64: بسكوت اهلاوى 2ج *12 علبة | F64: 9 | G64: مخزن14 | H64: تحويل وارد371من مخزن1لمخزن14 | I64: =SUMPRODUCT($F$2:F64,--($D$2:D64=D64),--($C$2:C64="Entree"))-SUMPRODUCT($F$2:F64,--($D$2:D64=D64),--($C$2:C64="Sortie")) -> 26
A65: 190 | B65: 2023-07-05 | C65: Sortie | D65: مخزن11 | E65: بسكوت اهلاوى 2ج *12 علبة | F65: 200 | G65: مخزن11 | H65: ف_بيع رقم 581 حمدى الجبلاو - حسن | I65: =SUMPRODUCT($F$2:F65,--($D$2:D65=D65),--($C$2:C65="Entree"))-SUMPRODUCT($F$2:F65,--($D$2:D65=D65),--($C$2:C65="Sortie")) -> -174
A66: 191 | B66: 2023-07-05 | C66: Sortie | D66: مخزن11 | E66: بسكوت اهلاوى 2ج *12 علبة | F66: 79 | G66: مخزن11 | H66: ف_بيع رقم 582 ابوعمر السهاريج | I66: =SUMPRODUCT($F$2:F66,--($D$2:D66=D66),--($C$2:C66="Entree"))-SUMPRODUCT($F$2:F66,--($D$2:D66=D66),--($C$2:C66="Sortie")) -> -253
A67: 86 | B67: 2023-07-05 | C67: Sortie | D67: مخزن1 | E67: بسكوت اهلاوى 2ج *12 علبة | F67: 70 | G67: مخزن12 | H67: ت صادر464من مخزن1لمخزن12 | I67: =SUMPRODUCT($F$2:F67,--($D$2:D67=D67),--($C$2:C67="Entree"))-SUMPRODUCT($F$2:F67,--($D$2:D67=D67),--($C$2:C67="Sortie")) -> 427
A68: 430 | B68: 2023-07-05 | C68: Sortie | D68: مخزن14 | E68: بسكوت اهلاوى 2ج *12 علبة | F68: 4 | G68: مخزن14 | H68: ف_بيع رقم 725 دولسى ماركت - ابوبكر | I68: =SUMPRODUCT($F$2:F68,--($D$2:D68=D68),--($C$2:C68="Entree"))-SUMPRODUCT($F$2:F68,--($D$2:D68=D68),--($C$2:C68="Sortie")) -> 22
A69: 352 | B69: 2023-07-06 | C69: Sortie | D69: مخزن14 | E69: بسكوت اهلاوى 2ج *12 علبة | F69: 9 | G69: مخزن14 | H69: ف_بيع رقم 467 ماركت التيسير - ابوبكر | I69: =SUMPRODUCT($F$2:F69,--($D$2:D69=D69),--($C$2:C69="Entree"))-SUMPRODUCT($F$2:F69,--($D$2:D69=D69),--($C$2:C69="Sortie")) -> 13
A70: 17 | B70: 2023-07-06 | C70: Sortie | D70: مخزن1 | E70: بسكوت اهلاوى 2ج *12 علبة | F70: 130 | G70: سنيوريتا فرع الاقصر | H70: ف_بيع رقم 478 سنيوريتا فرع الاقصر | I70: =SUMPRODUCT($F$2:F70,--($D$2:D70=D70),--($C$2:C70="Entree"))-SUMPRODUCT($F$2:F70,--($D$2:D70=D70),--($C$2:C70="Sortie")) -> 297
A71: 18 | B71: 2023-07-06 | C71: Sortie | D71: مخزن1 | E71: بسكوت اهلاوى 2ج *12 علبة | F71: 251 | G71: مخزن11 | H71: ت صادر375من مخزن1لمخزن11 | I71: =SUMPRODUCT($F$2:F71,--($D$2:D71=D71),--($C$2:C71="Entree"))-SUMPRODUCT($F$2:F71,--($D$2:D71=D71),--($C$2:C71="Sortie")) -> 46
A72: 59 | B72: 2023-07-06 | C72: Entree | D72: مخزن1 | E72: بسكوت اهلاوى 2ج *12 علبة | F72: 11 | G72: مخزن14 | H72: تحويل وارد433من مخزن14لمخزن1 | I72: =SUMPRODUCT($F$2:F72,--($D$2:D72=D72),--($C$2:C72="Entree"))-SUMPRODUCT($F$2:F72,--($D$2:D72=D72),--($C$2:C72="Sortie")) -> 57
A73: 383 | B73: 2023-07-06 | C73: Sortie | D73: مخزن14 | E73: بسكوت اهلاوى 2ج *12 علبة | F73: 11 | G73: مخزن1 | H73: ت صادر433من مخزن14لمخزن1 | I73: =SUMPRODUCT($F$2:F73,--($D$2:D73=D73),--($C$2:C73="Entree"))-SUMPRODUCT($F$2:F73,--($D$2:D73=D73),--($C$2:C73="Sortie")) -> 2
A74: 298 | B74: 2023-07-06 | C74: Sortie | D74: مخزن12 | E74: بسكوت اهلاوى 2ج *12 علبة | F74: 100 | G74: مخزن12 | H74: ف_بيع رقم 668 اسماعيل البراهمة | I74: =SUMPRODUCT($F$2:F74,--($D$2:D74=D74),--($C$2:C74="Entree"))-SUMPRODUCT($F$2:F74,--($D$2:D74=D74),--($C$2:C74="Sortie")) -> 124
A75: 126 | B75: 2023-07-06 | C75: Entree | D75: مخزن1 | E75: بسكوت اهلاوى 2ج *12 علبة | F75: 1613 | G75: سنيوريتا فرع اسيوط | H75: ف_شراء رقم 59 سنيوريتا فرع اسيوط | I75: =SUMPRODUCT($F$2:F75,--($D$2:D75=D75),--($C$2:C75="Entree"))-SUMPRODUCT($F$2:F75,--($D$2:D75=D75),--($C$2:C75="Sortie")) -> 1670
A76: 19 | B76: 2023-07-08 | C76: Sortie | D76: مخزن1 | E76: بسكوت اهلاوى 2ج *12 علبة | F76: 20 | G76: مخزن14 | H76: ت صادر373من مخزن1لمخزن14 | I76: =SUMPRODUCT($F$2:F76,--($D$2:D76=D76),--($C$2:C76="Entree"))-SUMPRODUCT($F$2:F76,--($D$2:D76=D76),--($C$2:C76="Sortie")) -> 1650
A77: 20 | B77: 2023-07-08 | C77: Sortie | D77: مخزن1 | E77: بسكوت اهلاوى 2ج *12 علبة | F77: 165 | G77: سنيوريتا فرع الاقصر | H77: ف_بيع رقم 479 سنيوريتا فرع الاقصر | I77: =SUMPRODUCT($F$2:F77,--($D$2:D77=D77),--($C$2:C77="Entree"))-SUMPRODUCT($F$2:F77,--($D$2:D77=D77),--($C$2:C77="Sortie")) -> 1485
A78: 62 | B78: 2023-07-08 | C78: Sortie | D78: مخزن1 | E78: بسكوت اهلاوى 2ج *12 علبة | F78: 400 | G78: مخزن12 | H78: ت صادر438من مخزن1لمخزن12 | I78: =SUMPRODUCT($F$2:F78,--($D$2:D78=D78),--($C$2:C78="Entree"))-SUMPRODUCT($F$2:F78,--($D$2:D78=D78),--($C$2:C78="Sortie")) -> 1085
A79: 63 | B79: 2023-07-08 | C79: Sortie | D79: مخزن1 | E79: بسكوت اهلاوى 2ج *12 علبة | F79: 11 | G79: مخزن14 | H79: ت صادر436من مخزن1لمخزن14 | I79: =SUMPRODUCT($F$2:F79,--($D$2:D79=D79),--($C$2:C79="Entree"))-SUMPRODUCT($F$2:F79,--($D$2:D79=D79),--($C$2:C79="Sortie")) -> 1074
A80: 299 | B80: 2023-07-08 | C80: Entree | D80: مخزن12 | E80: بسكوت اهلاوى 2ج *12 علبة | F80: 70 | G80: مخزن12 | H80: تحويل وارد464من مخزن1لمخزن12 | I80: =SUMPRODUCT($F$2:F80,--($D$2:D80=D80),--($C$2:C80="Entree"))-SUMPRODUCT($F$2:F80,--($D$2:D80=D80),--($C$2:C80="Sortie")) -> 194
A81: 431 | B81: 2023-07-08 | C81: Sortie | D81: مخزن14 | E81: بسكوت اهلاوى 2ج *12 علبة | F81: 1 | G81: مخزن14 | H81: ف_بيع رقم 729 ماركت العبد - ابوبكر | I81: =SUMPRODUCT($F$2:F81,--($D$2:D81=D81),--($C$2:C81="Entree"))-SUMPRODUCT($F$2:F81,--($D$2:D81=D81),--($C$2:C81="Sortie")) -> 1
A82: 127 | B82: 2023-07-08 | C82: Sortie | D82: مخزن1 | E82: بسكوت اهلاوى 2ج *12 علبة | F82: 10 | G82: مخزن14 | H82: ت صادر508من مخزن1لمخزن14 | I82: =SUMPRODUCT($F$2:F82,--($D$2:D82=D82),--($C$2:C82="Entree"))-SUMPRODUCT($F$2:F82,--($D$2:D82=D82),--($C$2:C82="Sortie")) -> 1064
A83: 21 | B83: 2023-07-09 | C83: Sortie | D83: مخزن1 | E83: بسكوت اهلاوى 2ج *12 علبة | F83: 230 | G83: سنيوريتا فرع الاقصر | H83: ف_بيع رقم 477 سنيوريتا فرع الاقصر | I83: =SUMPRODUCT($F$2:F83,--($D$2:D83=D83),--($C$2:C83="Entree"))-SUMPRODUCT($F$2:F83,--($D$2:D83=D83),--($C$2:C83="Sortie")) -> 834
A84: 128 | B84: 2023-07-09 | C84: Sortie | D84: مخزن1 | E84: بسكوت اهلاوى 2ج *12 علبة | F84: 275 | G84: مخزن12 | H84: ت صادر509من مخزن1لمخزن12 | I84: =SUMPRODUCT($F$2:F84,--($D$2:D84=D84),--($C$2:C84="Entree"))-SUMPRODUCT($F$2:F84,--($D$2:D84=D84),--($C$2:C84="Sortie")) -> 559
A85: 129 | B85: 2023-07-09 | C85: Sortie | D85: مخزن1 | E85: بسكوت اهلاوى 2ج *12 علبة | F85: 490 | G85: مخزن11 | H85: ت صادر510من مخزن1لمخزن11 | I85: =SUMPRODUCT($F$2:F85,--($D$2:D85=D85),--($C$2:C85="Entree"))-SUMPRODUCT($F$2:F85,--($D$2:D85=D85),--($C$2:C85="Sortie")) -> 69
A86: 22 | B86: 2023-07-10 | C86: Sortie | D86: مخزن1 | E86: بسكوت اهلاوى 2ج *12 علبة | F86: 100 | G86: مخزن12 | H86: ت صادر377من مخزن1لمخزن12 | I86: =SUMPRODUCT($F$2:F86,--($D$2:D86=D86),--($C$2:C86="Entree"))-SUMPRODUCT($F$2:F86,--($D$2:D86=D86),--($C$2:C86="Sortie")) -> -31
A87: 23 | B87: 2023-07-10 | C87: Sortie | D87: مخزن1 | E87: بسكوت اهلاوى 2ج *12 علبة | F87: 220 | G87: مخزن12 | H87: ت صادر376من مخزن1لمخزن12 | I87: =SUMPRODUCT($F$2:F87,--($D$2:D87=D87),--($C$2:C87="Entree"))-SUMPRODUCT($F$2:F87,--($D$2:D87=D87),--($C$2:C87="Sortie")) -> -251
A88: 162 | B88: 2023-07-10 | C88: Sortie | D88: مخزن11 | E88: بسكوت اهلاوى 2ج *12 علبة | F88: 100 | G88: مخزن11 | H88: ف_بيع رقم 481 ابراهيم يونس - حسن | I88: =SUMPRODUCT($F$2:F88,--($D$2:D88=D88),--($C$2:C88="Entree"))-SUMPRODUCT($F$2:F88,--($D$2:D88=D88),--($C$2:C88="Sortie")) -> -353
A89: 276 | B89: 2023-07-10 | C89: Entree | D89: مخزن12 | E89: بسكوت اهلاوى 2ج *12 علبة | F89: 400 | G89: مخزن12 | H89: تحويل وارد438من مخزن1لمخزن12 | I89: =SUMPRODUCT($F$2:F89,--($D$2:D89=D89),--($C$2:C89="Entree"))-SUMPRODUCT($F$2:F89,--($D$2:D89=D89),--($C$2:C89="Sortie")) -> 594
A90: 277 | B90: 2023-07-10 | C90: Sortie | D90: مخزن12 | E90: بسكوت اهلاوى 2ج *12 علبة | F90: 400 | G90: مخزن12 | H90: ف_بيع رقم 590 صافى سمير - سيد | I90: =SUMPRODUCT($F$2:F90,--($D$2:D90=D90),--($C$2:C90="Entree"))-SUMPRODUCT($F$2:F90,--($D$2:D90=D90),--($C$2:C90="Sortie")) -> 194
A91: 384 | B91: 2023-07-10 | C91: Entree | D91: مخزن14 | E91: بسكوت اهلاوى 2ج *12 علبة | F91: 11 | G91: مخزن14 | H91: تحويل وارد436من مخزن1لمخزن14 | I91: =SUMPRODUCT($F$2:F91,--($D$2:D91=D91),--($C$2:C91="Entree"))-SUMPRODUCT($F$2:F91,--($D$2:D91=D91),--($C$2:C91="Sortie")) -> 12
A92: 406 | B92: 2023-07-10 | C92: Entree | D92: مخزن14 | E92: بسكوت اهلاوى 2ج *12 علبة | F92: 10 | G92: مخزن14 | H92: تحويل وارد465من مخزن1لمخزن14 | I92: =SUMPRODUCT($F$2:F92,--($D$2:D92=D92),--($C$2:C92="Entree"))-SUMPRODUCT($F$2:F92,--($D$2:D92=D92),--($C$2:C92="Sortie")) -> 22
A93: 407 | B93: 2023-07-10 | C93: Sortie | D93: مخزن14 | E93: بسكوت اهلاوى 2ج *12 علبة | F93: 10 | G93: مخزن14 | H93: ف_بيع رقم 670 الجمعية المحمدية الاستهلاكية | I93: =SUMPRODUCT($F$2:F93,--($D$2:D93=D93),--($C$2:C93="Entree"))-SUMPRODUCT($F$2:F93,--($D$2:D93=D93),--($C$2:C93="Sortie")) -> 12
A94: 234 | B94: 2023-07-10 | C94: Sortie | D94: مخزن11 | E94: بسكوت اهلاوى 2ج *12 علبة | F94: 100 | G94: مخزن11 | H94: ف_بيع رقم 732 ابوعمر السهاريج | I94: =SUMPRODUCT($F$2:F94,--($D$2:D94=D94),--($C$2:C94="Entree"))-SUMPRODUCT($F$2:F94,--($D$2:D94=D94),--($C$2:C94="Sortie")) -> -453
A95: 235 | B95: 2023-07-10 | C95: Entree | D95: مخزن11 | E95: بسكوت اهلاوى 2ج *12 علبة | F95: 490 | G95: مخزن11 | H95: تحويل وارد510من مخزن1لمخزن11 | I95: =SUMPRODUCT($F$2:F95,--($D$2:D95=D95),--($C$2:C95="Entree"))-SUMPRODUCT($F$2:F95,--($D$2:D95=D95),--($C$2:C95="Sortie")) -> 37
A96: 163 | B96: 2023-07-11 | C96: Entree | D96: مخزن11 | E96: بسكوت اهلاوى 2ج *12 علبة | F96: 251 | G96: مخزن11 | H96: تحويل وارد375من مخزن1لمخزن11 | I96: =SUMPRODUCT($F$2:F96,--($D$2:D96=D96),--($C$2:C96="Entree"))-SUMPRODUCT($F$2:F96,--($D$2:D96=D96),--($C$2:C96="Sortie")) -> 288
A97: 251 | B97: 2023-07-11 | C97: Entree | D97: مخزن12 | E97: بسكوت اهلاوى 2ج *12 علبة | F97: 220 | G97: مخزن12 | H97: تحويل وارد376من مخزن1لمخزن12 | I97: =SUMPRODUCT($F$2:F97,--($D$2:D97=D97),--($C$2:C97="Entree"))-SUMPRODUCT($F$2:F97,--($D$2:D97=D97),--($C$2:C97="Sortie")) -> 414
A98: 385 | B98: 2023-07-11 | C98: Sortie | D98: مخزن14 | E98: بسكوت اهلاوى 2ج *12 علبة | F98: 5 | G98: مخزن14 | H98: ف_بيع رقم 588 زمزم - ابوبكر | I98: =SUMPRODUCT($F$2:F98,--($D$2:D98=D98),--($C$2:C98="Entree"))-SUMPRODUCT($F$2:F98,--($D$2:D98=D98),--($C$2:C98="Sortie")) -> 7
A99: 87 | B99: 2023-07-11 | C99: Sortie | D99: مخزن1 | E99: بسكوت اهلاوى 2ج *12 علبة | F99: 10 | G99: مخزن14 | H99: ت صادر467من مخزن1لمخزن14 | I99: =SUMPRODUCT($F$2:F99,--($D$2:D99=D99),--($C$2:C99="Entree"))-SUMPRODUCT($F$2:F99,--($D$2:D99=D99),--($C$2:C99="Sortie")) -> -261
A100: 88 | B100: 2023-07-11 | C100: Sortie | D100: مخزن1 | E100: بسكوت اهلاوى 2ج *12 علبة | F100: 89 | G100: مخزن11 | H100: ت صادر468من مخزن1لمخزن11 | I100: =SUMPRODUCT($F$2:F100,--($D$2:D100=D100),--($C$2:C100="Entree"))-SUMPRODUCT($F$2:F100,--($D$2:D100=D100),--($C$2:C100="Sortie")) -> -350
A101: 211 | B101: 2023-07-11 | C101: Entree | D101: مخزن11 | E101: بسكوت اهلاوى 2ج *12 علبة | F101: 89 | G101: مخزن11 | H101: تحويل وارد468من مخزن1لمخزن11 | I101: =SUMPRODUCT($F$2:F101,--($D$2:D101=D101),--($C$2:C101="Entree"))-SUMPRODUCT($F$2:F101,--($D$2:D101=D101),--($C$2:C101="Sortie")) -> 377
A102: 236 | B102: 2023-07-11 | C102: Sortie | D102: مخزن11 | E102: بسكوت اهلاوى 2ج *12 علبة | F102: 100 | G102: مخزن11 | H102: ف_بيع رقم 731 المراسى - حسن | I102: =SUMPRODUCT($F$2:F102,--($D$2:D102=D102),--($C$2:C102="Entree"))-SUMPRODUCT($F$2:F102,--($D$2:D102=D102),--($C$2:C102="Sortie")) -> 277
A103: 212 | B103: 2023-07-12 | C103: Sortie | D103: مخزن11 | E103: بسكوت اهلاوى 2ج *12 علبة | F103: 100 | G103: مخزن11 | H103: ف_بيع رقم 671 حمدى الجبلاو - حسن | I103: =SUMPRODUCT($F$2:F103,--($D$2:D103=D103),--($C$2:C103="Entree"))-SUMPRODUCT($F$2:F103,--($D$2:D103=D103),--($C$2:C103="Sortie")) -> 177
A104: 319 | B104: 2023-07-12 | C104: Sortie | D104: مخزن12 | E104: بسكوت اهلاوى 2ج *12 علبة | F104: 200 | G104: مخزن12 | H104: ف_بيع رقم 730 صافى سمير - سيد | I104: =SUMPRODUCT($F$2:F104,--($D$2:D104=D104),--($C$2:C104="Entree"))-SUMPRODUCT($F$2:F104,--($D$2:D104=D104),--($C$2:C104="Sortie")) -> 214
A105: 320 | B105: 2023-07-12 | C105: Entree | D105: مخزن12 | E105: بسكوت اهلاوى 2ج *12 علبة | F105: 275 | G105: مخزن12 | H105: تحويل وارد509من مخزن1لمخزن12 | I105: =SUMPRODUCT($F$2:F105,--($D$2:D105=D105),--($C$2:C105="Entree"))-SUMPRODUCT($F$2:F105,--($D$2:D105=D105),--($C$2:C105="Sortie")) -> 489
A106: 386 | B106: 2023-07-13 | C106: Sortie | D106: مخزن14 | E106: بسكوت اهلاوى 2ج *12 علبة | F106: 2 | G106: مخزن14 | H106: ف_بيع رقم 589 ماركت الرحمة - ابوبكر | I106: =SUMPRODUCT($F$2:F106,--($D$2:D106=D106),--($C$2:C106="Entree"))-SUMPRODUCT($F$2:F106,--($D$2:D106=D106),--($C$2:C106="Sortie")) -> 5
A107: 408 | B107: 2023-07-13 | C107: Entree | D107: مخزن14 | E107: بسكوت اهلاوى 2ج *12 علبة | F107: 10 | G107: مخزن14 | H107: تحويل وارد467من مخزن1لمخزن14 | I107: =SUMPRODUCT($F$2:F107,--($D$2:D107=D107),--($C$2:C107="Entree"))-SUMPRODUCT($F$2:F107,--($D$2:D107=D107),--($C$2:C107="Sortie")) -> 15
A108: 252 | B108: 2023-07-14 | C108: Entree | D108: مخزن12 | E108: بسكوت اهلاوى 2ج *12 علبة | F108: 100 | G108: مخزن12 | H108: تحويل وارد377من مخزن1لمخزن12 | I108: =SUMPRODUCT($F$2:F108,--($D$2:D108=D108),--($C$2:C108="Entree"))-SUMPRODUCT($F$2:F108,--($D$2:D108=D108),--($C$2:C108="Sortie")) -> 589
A109: 253 | B109: 2023-07-15 | C109: Sortie | D109: مخزن12 | E109: بسكوت اهلاوى 2ج *12 علبة | F109: 200 | G109: مخزن12 | H109: ف_بيع رقم 480 صافى سمير - سيد | I109: =SUMPRODUCT($F$2:F109,--($D$2:D109=D109),--($C$2:C109="Entree"))-SUMPRODUCT($F$2:F109,--($D$2:D109=D109),--($C$2:C109="Sortie")) -> 389
A110: 353 | B110: 2023-07-15 | C110: Sortie | D110: مخزن14 | E110: بسكوت اهلاوى 2ج *12 علبة | F110: 1 | G110: مخزن14 | H110: ف_بيع رقم 475 ماركت العاصمة - ابوبكر | I110: =SUMPRODUCT($F$2:F110,--($D$2:D110=D110),--($C$2:C110="Entree"))-SUMPRODUCT($F$2:F110,--($D$2:D110=D110),--($C$2:C110="Sortie")) -> 14
A111: 387 | B111: 2023-07-15 | C111: Sortie | D111: مخزن14 | E111: بسكوت اهلاوى 2ج *12 علبة | F111: 1 | G111: مخزن14 | H111: ف_بيع رقم 587 ماركت العاصمة - ابوبكر | I111: =SUMPRODUCT($F$2:F111,--($D$2:D111=D111),--($C$2:C111="Entree"))-SUMPRODUCT($F$2:F111,--($D$2:D111=D111),--($C$2:C111="Sortie")) -> 13
A112: 64 | B112: 2023-07-15 | C112: Sortie | D112: مخزن1 | E112: بسكوت اهلاوى 2ج *12 علبة | F112: 160 | G112: مخزن12 | H112: ت صادر439من مخزن1لمخزن12 | I112: =SUMPRODUCT($F$2:F112,--($D$2:D112=D112),--($C$2:C112="Entree"))-SUMPRODUCT($F$2:F112,--($D$2:D112=D112),--($C$2:C112="Sortie")) -> -510
A113: 409 | B113: 2023-07-15 | C113: Sortie | D113: مخزن14 | E113: بسكوت اهلاوى 2ج *12 علبة | F113: 2 | G113: مخزن14 | H113: ف_بيع رقم 672 هبة الرحمن - ابوبكر | I113: =SUMPRODUCT($F$2:F113,--($D$2:D113=D113),--($C$2:C113="Entree"))-SUMPRODUCT($F$2:F113,--($D$2:D113=D113),--($C$2:C113="Sortie")) -> 11
A114: 432 | B114: 2023-07-15 | C114: Entree | D114: مخزن14 | E114: بسكوت اهلاوى 2ج *12 علبة | F114: 10 | G114: مخزن14 | H114: تحويل وارد508من مخزن1لمخزن14 | I114: =SUMPRODUCT($F$2:F114,--($D$2:D114=D114),--($C$2:C114="Entree"))-SUMPRODUCT($F$2:F114,--($D$2:D114=D114),--($C$2:C114="Sortie")) -> 21
A115: 433 | B115: 2023-07-15 | C115: Sortie | D115: مخزن14 | E115: بسكوت اهلاوى 2ج *12 علبة | F115: 2 | G115: مخزن14 | H115: ف_بيع رقم 735 عبدلله سانوسى - ابوبكر | I115: =SUMPRODUCT($F$2:F115,--($D$2:D115=D115),--($C$2:C115="Entree"))-SUMPRODUCT($F$2:F115,--($D$2:D115=D115),--($C$2:C115="Sortie")) -> 19
A116: 434 | B116: 2023-07-15 | C116: Sortie | D116: مخزن14 | E116: بسكوت اهلاوى 2ج *12 علبة | F116: 10 | G116: مخزن14 | H116: ف_بيع رقم 738 ماركت العبادى | I116: =SUMPRODUCT($F$2:F116,--($D$2:D116=D116),--($C$2:C116="Entree"))-SUMPRODUCT($F$2:F116,--($D$2:D116=D116),--($C$2:C116="Sortie")) -> 9
A117: 354 | B117: 2023-07-16 | C117: Sortie | D117: مخزن14 | E117: بسكوت اهلاوى 2ج *12 علبة | F117: 1 | G117: مخزن14 | H117: ف_بيع رقم 476 عبدلله ال البيت - ابوبكر | I117: =SUMPRODUCT($F$2:F117,--($D$2:D117=D117),--($C$2:C117="Entree"))-SUMPRODUCT($F$2:F117,--($D$2:D117=D117),--($C$2:C117="Sortie")) -> 8
A118: 355 | B118: 2023-07-16 | C118: Sortie | D118: مخزن14 | E118: بسكوت اهلاوى 2ج *12 علبة | F118: 5 | G118: مخزن14 | H118: ف_بيع رقم 474 دولسى ماركت - ابوبكر | I118: =SUMPRODUCT($F$2:F118,--($D$2:D118=D118),--($C$2:C118="Entree"))-SUMPRODUCT($F$2:F118,--($D$2:D118=D118),--($C$2:C118="Sortie")) -> 3
A119: 278 | B119: 2023-07-16 | C119: Entree | D119: مخزن12 | E119: بسكوت اهلاوى 2ج *12 علبة | F119: 160 | G119: مخزن12 | H119: تحويل وارد439من مخزن1لمخزن12 | I119: =SUMPRODUCT($F$2:F119,--($D$2:D119=D119),--($C$2:C119="Entree"))-SUMPRODUCT($F$2:F119,--($D$2:D119=D119),--($C$2:C119="Sortie")) -> 549
A120: 279 | B120: 2023-07-16 | C120: Sortie | D120: مخزن12 | E120: بسكوت اهلاوى 2ج *12 علبة | F120: 100 | G120: مخزن12 | H120: ف_بيع رقم 591 عباس دندرة - سيد | I120: =SUMPRODUCT($F$2:F120,--($D$2:D120=D120),--($C$2:C120="Entree"))-SUMPRODUCT($F$2:F120,--($D$2:D120=D120),--($C$2:C120="Sortie")) -> 449
A121: 89 | B121: 2023-07-16 | C121: Entree | D121: مخزن1 | E121: بسكوت اهلاوى 2ج *12 علبة | F121: 1386 | G121: سنيوريتا فرع اسيوط | H121: ف_شراء رقم 56 سنيوريتا فرع اسيوط | I121: =SUMPRODUCT($F$2:F121,--($D$2:D121=D121),--($C$2:C121="Entree"))-SUMPRODUCT($F$2:F121,--($D$2:D121=D121),--($C$2:C121="Sortie")) -> 876
A122: 90 | B122: 2023-07-16 | C122: Sortie | D122: مخزن1 | E122: بسكوت اهلاوى 2ج *12 علبة | F122: 135 | G122: مخزن11 | H122: ت صادر472من مخزن1لمخزن11 | I122: =SUMPRODUCT($F$2:F122,--($D$2:D122=D122),--($C$2:C122="Entree"))-SUMPRODUCT($F$2:F122,--($D$2:D122=D122),--($C$2:C122="Sortie")) -> 741
A123: 356 | B123: 2023-07-17 | C123: Sortie | D123: مخزن14 | E123: بسكوت اهلاوى 2ج *12 علبة | F123: 6 | G123: مخزن14 | H123: ف_بيع رقم 473 ماركت التيسير - ابوبكر | I123: =SUMPRODUCT($F$2:F123,--($D$2:D123=D123),--($C$2:C123="Entree"))-SUMPRODUCT($F$2:F123,--($D$2:D123=D123),--($C$2:C123="Sortie")) -> -3
A124: 388 | B124: 2023-07-17 | C124: Sortie | D124: مخزن14 | E124: بسكوت اهلاوى 2ج *12 علبة | F124: 3 | G124: مخزن14 | H124: ف_بيع رقم 593 هايبر بن سعود | I124: =SUMPRODUCT($F$2:F124,--($D$2:D124=D124),--($C$2:C124="Entree"))-SUMPRODUCT($F$2:F124,--($D$2:D124=D124),--($C$2:C124="Sortie")) -> -6
A125: 65 | B125: 2023-07-17 | C125: Sortie | D125: مخزن1 | E125: بسكوت اهلاوى 2ج *12 علبة | F125: 56 | G125: مخزن12 | H125: ت صادر440من مخزن1لمخزن12 | I125: =SUMPRODUCT($F$2:F125,--($D$2:D125=D125),--($C$2:C125="Entree"))-SUMPRODUCT($F$2:F125,--($D$2:D125=D125),--($C$2:C125="Sortie")) -> 685
A126: 91 | B126: 2023-07-17 | C126: Sortie | D126: مخزن1 | E126: بسكوت اهلاوى 2ج *12 علبة | F126: 150 | G126: مخزن12 | H126: ت صادر471من مخزن1لمخزن12 | I126: =SUMPRODUCT($F$2:F126,--($D$2:D126=D126),--($C$2:C126="Entree"))-SUMPRODUCT($F$2:F126,--($D$2:D126=D126),--($C$2:C126="Sortie")) -> 535
A127: 130 | B127: 2023-07-17 | C127: Sortie | D127: مخزن1 | E127: بسكوت اهلاوى 2ج *12 علبة | F127: 300 | G127: مخزن11 | H127: ت صادر512من مخزن1لمخزن11 | I127: =SUMPRODUCT($F$2:F127,--($D$2:D127=D127),--($C$2:C127="Entree"))-SUMPRODUCT($F$2:F127,--($D$2:D127=D127),--($C$2:C127="Sortie")) -> 235
A128: 280 | B128: 2023-07-18 | C128: Entree | D128: مخزن12 | E128: بسكوت اهلاوى 2ج *12 علبة | F128: 56 | G128: مخزن12 | H128: تحويل وارد440من مخزن1لمخزن12 | I128: =SUMPRODUCT($F$2:F128,--($D$2:D128=D128),--($C$2:C128="Entree"))-SUMPRODUCT($F$2:F128,--($D$2:D128=D128),--($C$2:C128="Sortie")) -> 505
A129: 213 | B129: 2023-07-18 | C129: Entree | D129: مخزن11 | E129: بسكوت اهلاوى 2ج *12 علبة | F129: 135 | G129: مخزن11 | H129: تحويل وارد472من مخزن1لمخزن11 | I129: =SUMPRODUCT($F$2:F129,--($D$2:D129=D129),--($C$2:C129="Entree"))-SUMPRODUCT($F$2:F129,--($D$2:D129=D129),--($C$2:C129="Sortie")) -> 312
A130: 131 | B130: 2023-07-18 | C130: Sortie | D130: مخزن1 | E130: بسكوت اهلاوى 2ج *12 علبة | F130: 105 | G130: مخزن12 | H130: ت صادر511من مخزن1لمخزن12 | I130: =SUMPRODUCT($F$2:F130,--($D$2:D130=D130),--($C$2:C130="Entree"))-SUMPRODUCT($F$2:F130,--($D$2:D130=D130),--($C$2:C130="Sortie")) -> 130
A131: 281 | B131: 2023-07-19 | C131: Sortie | D131: مخزن12 | E131: بسكوت اهلاوى 2ج *12 علبة | F131: 100 | G131: مخزن12 | H131: ف_بيع رقم 596 محمد حسن - سيد | I131: =SUMPRODUCT($F$2:F131,--($D$2:D131=D131),--($C$2:C131="Entree"))-SUMPRODUCT($F$2:F131,--($D$2:D131=D131),--($C$2:C131="Sortie")) -> 405
A132: 214 | B132: 2023-07-19 | C132: Sortie | D132: مخزن11 | E132: بسكوت اهلاوى 2ج *12 علبة | F132: 100 | G132: مخزن11 | H132: ف_بيع رقم 673 حمدى الجبلاو - حسن | I132: =SUMPRODUCT($F$2:F132,--($D$2:D132=D132),--($C$2:C132="Entree"))-SUMPRODUCT($F$2:F132,--($D$2:D132=D132),--($C$2:C132="Sortie")) -> 212
A133: 300 | B133: 2023-07-20 | C133: Entree | D133: مخزن12 | E133: بسكوت اهلاوى 2ج *12 علبة | F133: 150 | G133: مخزن12 | H133: تحويل وارد471من مخزن1لمخزن12 | I133: =SUMPRODUCT($F$2:F133,--($D$2:D133=D133),--($C$2:C133="Entree"))-SUMPRODUCT($F$2:F133,--($D$2:D133=D133),--($C$2:C133="Sortie")) -> 555
A134: 301 | B134: 2023-07-22 | C134: Sortie | D134: مخزن12 | E134: بسكوت اهلاوى 2ج *12 علبة | F134: 100 | G134: مخزن12 | H134: ف_بيع رقم 676 محمد عبد الوهاب - سيد | I134: =SUMPRODUCT($F$2:F134,--($D$2:D134=D134),--($C$2:C134="Entree"))-SUMPRODUCT($F$2:F134,--($D$2:D134=D134),--($C$2:C134="Sortie")) -> 455
A135: 237 | B135: 2023-07-23 | C135: Entree | D135: مخزن11 | E135: بسكوت اهلاوى 2ج *12 علبة | F135: 300 | G135: مخزن11 | H135: تحويل وارد512من مخزن1لمخزن11 | I135: =SUMPRODUCT($F$2:F135,--($D$2:D135=D135),--($C$2:C135="Entree"))-SUMPRODUCT($F$2:F135,--($D$2:D135=D135),--($C$2:C135="Sortie")) -> 512
A136: 410 | B136: 2023-07-24 | C136: Sortie | D136: مخزن14 | E136: بسكوت اهلاوى 2ج *12 علبة | F136: 1 | G136: مخزن14 | H136: ف_بيع رقم 675 ماركت الهدى - ابوبكر | I136: =SUMPRODUCT($F$2:F136,--($D$2:D136=D136),--($C$2:C136="Entree"))-SUMPRODUCT($F$2:F136,--($D$2:D136=D136),--($C$2:C136="Sortie")) -> -7
A137: 238 | B137: 2023-07-25 | C137: Sortie | D137: مخزن11 | E137: بسكوت اهلاوى 2ج *12 علبة | F137: 500 | G137: مخزن11 | H137: ف_بيع رقم 745 حمدى الجبلاو - حسن | I137: =SUMPRODUCT($F$2:F137,--($D$2:D137=D137),--($C$2:C137="Entree"))-SUMPRODUCT($F$2:F137,--($D$2:D137=D137),--($C$2:C137="Sortie")) -> 12
A138: 357 | B138: 2023-07-26 | C138: Entree | D138: مخزن14 | E138: بسكوت اهلاوى 2ج *12 علبة | F138: 20 | G138: مخزن14 | H138: تحويل وارد373من مخزن1لمخزن14 | I138: =SUMPRODUCT($F$2:F138,--($D$2:D138=D138),--($C$2:C138="Entree"))-SUMPRODUCT($F$2:F138,--($D$2:D138=D138),--($C$2:C138="Sortie")) -> 13
A139: 24 | B139: 2023-07-26 | C139: Sortie | D139: مخزن1 | E139: بسكوت اهلاوى 2ج *12 علبة | F139: 95 | G139: مخزن11 | H139: ت صادر380من مخزن1لمخزن11 | I139: =SUMPRODUCT($F$2:F139,--($D$2:D139=D139),--($C$2:C139="Entree"))-SUMPRODUCT($F$2:F139,--($D$2:D139=D139),--($C$2:C139="Sortie")) -> 35
A140: 25 | B140: 2023-07-26 | C140: Sortie | D140: مخزن1 | E140: بسكوت اهلاوى 2ج *12 علبة | F140: 10 | G140: مخزن14 | H140: ت صادر379من مخزن1لمخزن14 | I140: =SUMPRODUCT($F$2:F140,--($D$2:D140=D140),--($C$2:C140="Entree"))-SUMPRODUCT($F$2:F140,--($D$2:D140=D140),--($C$2:C140="Sortie")) -> 25
A141: 66 | B141: 2023-07-26 | C141: Sortie | D141: مخزن1 | E141: بسكوت اهلاوى 2ج *12 علبة | F141: 10 | G141: مخزن14 | H141: ت صادر445من مخزن1لمخزن14 | I141: =SUMPRODUCT($F$2:F141,--($D$2:D141=D141),--($C$2:C141="Entree"))-SUMPRODUCT($F$2:F141,--($D$2:D141=D141),--($C$2:C141="Sortie")) -> 15
A142: 67 | B142: 2023-07-26 | C142: Sortie | D142: مخزن1 | E142: بسكوت اهلاوى 2ج *12 علبة | F142: 440 | G142: مخزن11 | H142: ت صادر444من مخزن1لمخزن11 | I142: =SUMPRODUCT($F$2:F142,--($D$2:D142=D142),--($C$2:C142="Entree"))-SUMPRODUCT($F$2:F142,--($D$2:D142=D142),--($C$2:C142="Sortie")) -> -425
A143: 321 | B143: 2023-07-26 | C143: Sortie | D143: مخزن12 | E143: بسكوت اهلاوى 2ج *12 علبة | F143: 200 | G143: مخزن12 | H143: ف_بيع رقم 739 صافى سمير - سيد | I143: =SUMPRODUCT($F$2:F143,--($D$2:D143=D143),--($C$2:C143="Entree"))-SUMPRODUCT($F$2:F143,--($D$2:D143=D143),--($C$2:C143="Sortie")) -> 255
A144: 322 | B144: 2023-07-26 | C144: Entree | D144: مخزن12 | E144: بسكوت اهلاوى 2ج *12 علبة | F144: 105 | G144: مخزن12 | H144: تحويل وارد511من مخزن1لمخزن12 | I144: =SUMPRODUCT($F$2:F144,--($D$2:D144=D144),--($C$2:C144="Entree"))-SUMPRODUCT($F$2:F144,--($D$2:D144=D144),--($C$2:C144="Sortie")) -> 360
A145: 26 | B145: 2023-07-27 | C145: Sortie | D145: مخزن1 | E145: بسكوت اهلاوى 2ج *12 علبة | F145: 200 | G145: مخزن12 | H145: ت صادر378من مخزن1لمخزن12 | I145: =SUMPRODUCT($F$2:F145,--($D$2:D145=D145),--($C$2:C145="Entree"))-SUMPRODUCT($F$2:F145,--($D$2:D145=D145),--($C$2:C145="Sortie")) -> -625
A146: 164 | B146: 2023-07-27 | C146: Entree | D146: مخزن11 | E146: بسكوت اهلاوى 2ج *12 علبة | F146: 95 | G146: مخزن11 | H146: تحويل وارد380من مخزن1لمخزن11 | I146: =SUMPRODUCT($F$2:F146,--($D$2:D146=D146),--($C$2:C146="Entree"))-SUMPRODUCT($F$2:F146,--($D$2:D146=D146),--($C$2:C146="Sortie")) -> 107
A147: 165 | B147: 2023-07-27 | C147: Sortie | D147: مخزن11 | E147: بسكوت اهلاوى 2ج *12 علبة | F147: 200 | G147: مخزن11 | H147: ف_بيع رقم 485 ابراهيم يونس - حسن | I147: =SUMPRODUCT($F$2:F147,--($D$2:D147=D147),--($C$2:C147="Entree"))-SUMPRODUCT($F$2:F147,--($D$2:D147=D147),--($C$2:C147="Sortie")) -> -93
A148: 68 | B148: 2023-07-27 | C148: Entree | D148: مخزن1 | E148: بسكوت اهلاوى 2ج *12 علبة | F148: 1512 | G148: شركة سنيوريتا الغذائية | H148: ف_شراء رقم 54 شركة سنيوريتا الغذائية | I148: =SUMPRODUCT($F$2:F148,--($D$2:D148=D148),--($C$2:C148="Entree"))-SUMPRODUCT($F$2:F148,--($D$2:D148=D148),--($C$2:C148="Sortie")) -> 887
A149: 69 | B149: 2023-07-27 | C149: Sortie | D149: مخزن1 | E149: بسكوت اهلاوى 2ج *12 علبة | F149: 534 | G149: مخزن12 | H149: ت صادر443من مخزن1لمخزن12 | I149: =SUMPRODUCT($F$2:F149,--($D$2:D149=D149),--($C$2:C149="Entree"))-SUMPRODUCT($F$2:F149,--($D$2:D149=D149),--($C$2:C149="Sortie")) -> 353
A150: 435 | B150: 2023-07-27 | C150: Sortie | D150: مخزن14 | E150: بسكوت اهلاوى 2ج *12 علبة | F150: 1 | G150: مخزن14 | H150: ف_بيع رقم 740 ماركت الزناتى | I150: =SUMPRODUCT($F$2:F150,--($D$2:D150=D150),--($C$2:C150="Entree"))-SUMPRODUCT($F$2:F150,--($D$2:D150=D150),--($C$2:C150="Sortie")) -> 12
A151: 436 | B151: 2023-07-27 | C151: Sortie | D151: مخزن14 | E151: بسكوت اهلاوى 2ج *12 علبة | F151: 1 | G151: مخزن14 | H151: ف_بيع رقم 742 ماركت الازهرى | I151: =SUMPRODUCT($F$2:F151,--($D$2:D151=D151),--($C$2:C151="Entree"))-SUMPRODUCT($F$2:F151,--($D$2:D151=D151),--($C$2:C151="Sortie")) -> 11
A152: 254 | B152: 2023-07-30 | C152: Entree | D152: مخزن12 | E152: بسكوت اهلاوى 2ج *12 علبة | F152: 200 | G152: مخزن12 | H152: تحويل وارد378من مخزن1لمخزن12 | I152: =SUMPRODUCT($F$2:F152,--($D$2:D152=D152),--($C$2:C152="Entree"))-SUMPRODUCT($F$2:F152,--($D$2:D152=D152),--($C$2:C152="Sortie")) -> 560
A153: 192 | B153: 2023-07-30 | C153: Sortie | D153: مخزن11 | E153: بسكوت اهلاوى 2ج *12 علبة | F153: 100 | G153: مخزن11 | H153: ف_بيع رقم 605 اخر ساعة حسن | I153: =SUMPRODUCT($F$2:F153,--($D$2:D153=D153),--($C$2:C153="Entree"))-SUMPRODUCT($F$2:F153,--($D$2:D153=D153),--($C$2:C153="Sortie")) -> -193
A154: 193 | B154: 2023-07-30 | C154: Sortie | D154: مخزن11 | E154: بسكوت اهلاوى 2ج *12 علبة | F154: 100 | G154: مخزن11 | H154: ف_بيع رقم 606 عادل تيسير - حسن | I154: =SUMPRODUCT($F$2:F154,--($D$2:D154=D154),--($C$2:C154="Entree"))-SUMPRODUCT($F$2:F154,--($D$2:D154=D154),--($C$2:C154="Sortie")) -> -293
A155: 194 | B155: 2023-07-30 | C155: Entree | D155: مخزن11 | E155: بسكوت اهلاوى 2ج *12 علبة | F155: 440 | G155: مخزن11 | H155: تحويل وارد444من مخزن1لمخزن11 | I155: =SUMPRODUCT($F$2:F155,--($D$2:D155=D155),--($C$2:C155="Entree"))-SUMPRODUCT($F$2:F155,--($D$2:D155=D155),--($C$2:C155="Sortie")) -> 147
A156: 255 | B156: 2023-07-31 | C156: Sortie | D156: مخزن12 | E156: بسكوت اهلاوى 2ج *12 علبة | F156: 200 | G156: مخزن12 | H156: ف_بيع رقم 484 صافى سمير - سيد | I156: =SUMPRODUCT($F$2:F156,--($D$2:D156=D156),--($C$2:C156="Entree"))-SUMPRODUCT($F$2:F156,--($D$2:D156=D156),--($C$2:C156="Sortie")) -> 360
A157: 132 | B157: 2023-07-31 | C157: Entree | D157: مخزن1 | E157: بسكوت اهلاوى 2ج *12 علبة | F157: 10 | G157: مخزن14 | H157: تحويل وارد513من مخزن14لمخزن1 | I157: =SUMPRODUCT($F$2:F157,--($D$2:D157=D157),--($C$2:C157="Entree"))-SUMPRODUCT($F$2:F157,--($D$2:D157=D157),--($C$2:C157="Sortie")) -> 363
A158: 358 | B158: 2023-08-01 | C158: Sortie | D158: مخزن14 | E158: بسكوت اهلاوى 2ج *12 علبة | F158: 1 | G158: مخزن14 | H158: ف_بيع رقم 486 ماركت عبيد - ابوبكر | I158: =SUMPRODUCT($F$2:F158,--($D$2:D158=D158),--($C$2:C158="Entree"))-SUMPRODUCT($F$2:F158,--($D$2:D158=D158),--($C$2:C158="Sortie")) -> 10
A159: 359 | B159: 2023-08-01 | C159: Entree | D159: مخزن14 | E159: بسكوت اهلاوى 2ج *12 علبة | F159: 10 | G159: مخزن14 | H159: تحويل وارد379من مخزن1لمخزن14 | I159: =SUMPRODUCT($F$2:F159,--($D$2:D159=D159),--($C$2:C159="Entree"))-SUMPRODUCT($F$2:F159,--($D$2:D159=D159),--($C$2:C159="Sortie")) -> 20
A160: 92 | B160: 2023-08-01 | C160: Sortie | D160: مخزن1 | E160: بسكوت اهلاوى 2ج *12 علبة | F160: 40 | G160: مخزن11 | H160: ت صادر473من مخزن1لمخزن11 | I160: =SUMPRODUCT($F$2:F160,--($D$2:D160=D160),--($C$2:C160="Entree"))-SUMPRODUCT($F$2:F160,--($D$2:D160=D160),--($C$2:C160="Sortie")) -> 323
A161: 215 | B161: 2023-08-01 | C161: Sortie | D161: مخزن11 | E161: بسكوت اهلاوى 2ج *12 علبة | F161: 100 | G161: مخزن11 | H161: ف_بيع رقم 677 حمدى الجبلاو - حسن | I161: =SUMPRODUCT($F$2:F161,--($D$2:D161=D161),--($C$2:C161="Entree"))-SUMPRODUCT($F$2:F161,--($D$2:D161=D161),--($C$2:C161="Sortie")) -> 47
A162: 133 | B162: 2023-08-01 | C162: Sortie | D162: مخزن1 | E162: بسكوت اهلاوى 2ج *12 علبة | F162: 400 | G162: مخزن12 | H162: ت صادر515من مخزن1لمخزن12 | I162: =SUMPRODUCT($F$2:F162,--($D$2:D162=D162),--($C$2:C162="Entree"))-SUMPRODUCT($F$2:F162,--($D$2:D162=D162),--($C$2:C162="Sortie")) -> -77
A163: 239 | B163: 2023-08-01 | C163: Sortie | D163: مخزن11 | E163: بسكوت اهلاوى 2ج *12 علبة | F163: 90 | G163: مخزن11 | H163: ف_بيع رقم 747 حمدى الجبلاو - حسن | I163: =SUMPRODUCT($F$2:F163,--($D$2:D163=D163),--($C$2:C163="Entree"))-SUMPRODUCT($F$2:F163,--($D$2:D163=D163),--($C$2:C163="Sortie")) -> -43
A164: 323 | B164: 2023-08-01 | C164: Entree | D164: مخزن12 | E164: بسكوت اهلاوى 2ج *12 علبة | F164: 400 | G164: مخزن12 | H164: تحويل وارد515من مخزن1لمخزن12 | I164: =SUMPRODUCT($F$2:F164,--($D$2:D164=D164),--($C$2:C164="Entree"))-SUMPRODUCT($F$2:F164,--($D$2:D164=D164),--($C$2:C164="Sortie")) -> 760
A165: 324 | B165: 2023-08-01 | C165: Sortie | D165: مخزن12 | E165: بسكوت اهلاوى 2ج *12 علبة | F165: 200 | G165: مخزن12 | H165: ف_بيع رقم 746 صافى سمير - سيد | I165: =SUMPRODUCT($F$2:F165,--($D$2:D165=D165),--($C$2:C165="Entree"))-SUMPRODUCT($F$2:F165,--($D$2:D165=D165),--($C$2:C165="Sortie")) -> 560
A166: 27 | B166: 2023-08-02 | C166: Sortie | D166: مخزن1 | E166: بسكوت اهلاوى 2ج *12 علبة | F166: 5 | G166: مخزن12 | H166: ت صادر381من مخزن1لمخزن12 | I166: =SUMPRODUCT($F$2:F166,--($D$2:D166=D166),--($C$2:C166="Entree"))-SUMPRODUCT($F$2:F166,--($D$2:D166=D166),--($C$2:C166="Sortie")) -> -82
A167: 216 | B167: 2023-08-02 | C167: Entree | D167: مخزن11 | E167: بسكوت اهلاوى 2ج *12 علبة | F167: 40 | G167: مخزن11 | H167: تحويل وارد473من مخزن1لمخزن11 | I167: =SUMPRODUCT($F$2:F167,--($D$2:D167=D167),--($C$2:C167="Entree"))-SUMPRODUCT($F$2:F167,--($D$2:D167=D167),--($C$2:C167="Sortie")) -> -3
A168: 411 | B168: 2023-08-02 | C168: Sortie | D168: مخزن14 | E168: بسكوت اهلاوى 2ج *12 علبة | F168: 2 | G168: مخزن14 | H168: ف_بيع رقم 679 خير بلدنا - ابوبكر | I168: =SUMPRODUCT($F$2:F168,--($D$2:D168=D168),--($C$2:C168="Entree"))-SUMPRODUCT($F$2:F168,--($D$2:D168=D168),--($C$2:C168="Sortie")) -> 18
A169: 437 | B169: 2023-08-02 | C169: Sortie | D169: مخزن14 | E169: بسكوت اهلاوى 2ج *12 علبة | F169: 1 | G169: مخزن14 | H169: ف_بيع رقم 751 ماركت نصر محمود | I169: =SUMPRODUCT($F$2:F169,--($D$2:D169=D169),--($C$2:C169="Entree"))-SUMPRODUCT($F$2:F169,--($D$2:D169=D169),--($C$2:C169="Sortie")) -> 17
A170: 256 | B170: 2023-08-03 | C170: Entree | D170: مخزن12 | E170: بسكوت اهلاوى 2ج *12 علبة | F170: 5 | G170: مخزن12 | H170: تحويل وارد381من مخزن1لمخزن12 | I170: =SUMPRODUCT($F$2:F170,--($D$2:D170=D170),--($C$2:C170="Entree"))-SUMPRODUCT($F$2:F170,--($D$2:D170=D170),--($C$2:C170="Sortie")) -> 565
A171: 93 | B171: 2023-08-03 | C171: Sortie | D171: مخزن1 | E171: بسكوت اهلاوى 2ج *12 علبة | F171: 150 | G171: مخزن11 | H171: ت صادر475من مخزن1لمخزن11 | I171: =SUMPRODUCT($F$2:F171,--($D$2:D171=D171),--($C$2:C171="Entree"))-SUMPRODUCT($F$2:F171,--($D$2:D171=D171),--($C$2:C171="Sortie")) -> -232
A172: 94 | B172: 2023-08-03 | C172: Sortie | D172: مخزن1 | E172: بسكوت اهلاوى 2ج *12 علبة | F172: 200 | G172: مخزن12 | H172: ت صادر476من مخزن1لمخزن12 | I172: =SUMPRODUCT($F$2:F172,--($D$2:D172=D172),--($C$2:C172="Entree"))-SUMPRODUCT($F$2:F172,--($D$2:D172=D172),--($C$2:C172="Sortie")) -> -432
A173: 360 | B173: 2023-08-05 | C173: Sortie | D173: مخزن14 | E173: بسكوت اهلاوى 2ج *12 علبة | F173: 3 | G173: مخزن14 | H173: ف_بيع رقم 491 ماركت الرحمة - ابوبكر | I173: =SUMPRODUCT($F$2:F173,--($D$2:D173=D173),--($C$2:C173="Entree"))-SUMPRODUCT($F$2:F173,--($D$2:D173=D173),--($C$2:C173="Sortie")) -> 14
A174: 28 | B174: 2023-08-05 | C174: Entree | D174: مخزن1 | E174: بسكوت اهلاوى 2ج *12 علبة | F174: 50 | G174: سنيوريتا فرع الاقصر | H174: ف_شراء رقم 53 سنيوريتا فرع الاقصر | I174: =SUMPRODUCT($F$2:F174,--($D$2:D174=D174),--($C$2:C174="Entree"))-SUMPRODUCT($F$2:F174,--($D$2:D174=D174),--($C$2:C174="Sortie")) -> -382
A175: 29 | B175: 2023-08-05 | C175: Entree | D175: مخزن1 | E175: بسكوت اهلاوى 2ج *12 علبة | F175: 42 | G175: سنيوريتا فرع اسيوط | H175: ف_شراء رقم 47 سنيوريتا فرع اسيوط | I175: =SUMPRODUCT($F$2:F175,--($D$2:D175=D175),--($C$2:C175="Entree"))-SUMPRODUCT($F$2:F175,--($D$2:D175=D175),--($C$2:C175="Sortie")) -> -340
A176: 30 | B176: 2023-08-05 | C176: Entree | D176: مخزن1 | E176: بسكوت اهلاوى 2ج *12 علبة | F176: 1500 | G176: سنيوريتا فرع اسيوط | H176: ف_شراء رقم 47 سنيوريتا فرع اسيوط | I176: =SUMPRODUCT($F$2:F176,--($D$2:D176=D176),--($C$2:C176="Entree"))-SUMPRODUCT($F$2:F176,--($D$2:D176=D176),--($C$2:C176="Sortie")) -> 1160
A177: 282 | B177: 2023-08-05 | C177: Entree | D177: مخزن12 | E177: بسكوت اهلاوى 2ج *12 علبة | F177: 534 | G177: مخزن12 | H177: تحويل وارد443من مخزن1لمخزن12 | I177: =SUMPRODUCT($F$2:F177,--($D$2:D177=D177),--($C$2:C177="Entree"))-SUMPRODUCT($F$2:F177,--($D$2:D177=D177),--($C$2:C177="Sortie")) -> 1099
A178: 283 | B178: 2023-08-05 | C178: Sortie | D178: مخزن12 | E178: بسكوت اهلاوى 2ج *12 علبة | F178: 100 | G178: مخزن12 | H178: ف_بيع رقم 601 عادل دياب - سيد | I178: =SUMPRODUCT($F$2:F178,--($D$2:D178=D178),--($C$2:C178="Entree"))-SUMPRODUCT($F$2:F178,--($D$2:D178=D178),--($C$2:C178="Sortie")) -> 999
A179: 284 | B179: 2023-08-05 | C179: Sortie | D179: مخزن12 | E179: بسكوت اهلاوى 2ج *12 علبة | F179: 100 | G179: مخزن12 | H179: ف_بيع رقم 602 محمد سعد سليم - سيد | I179: =SUMPRODUCT($F$2:F179,--($D$2:D179=D179),--($C$2:C179="Entree"))-SUMPRODUCT($F$2:F179,--($D$2:D179=D179),--($C$2:C179="Sortie")) -> 899
A180: 95 | B180: 2023-08-05 | C180: Sortie | D180: مخزن1 | E180: بسكوت اهلاوى 2ج *12 علبة | F180: 200 | G180: سنيوريتا فرع الاقصر | H180: ف_بيع رقم 682 سنيوريتا فرع الاقصر | I180: =SUMPRODUCT($F$2:F180,--($D$2:D180=D180),--($C$2:C180="Entree"))-SUMPRODUCT($F$2:F180,--($D$2:D180=D180),--($C$2:C180="Sortie")) -> 960
A181: 217 | B181: 2023-08-05 | C181: Entree | D181: مخزن11 | E181: بسكوت اهلاوى 2ج *12 علبة | F181: 150 | G181: مخزن11 | H181: تحويل وارد475من مخزن1لمخزن11 | I181: =SUMPRODUCT($F$2:F181,--($D$2:D181=D181),--($C$2:C181="Entree"))-SUMPRODUCT($F$2:F181,--($D$2:D181=D181),--($C$2:C181="Sortie")) -> 147
A182: 218 | B182: 2023-08-05 | C182: Sortie | D182: مخزن11 | E182: بسكوت اهلاوى 2ج *12 علبة | F182: 199 | G182: مخزن11 | H182: ف_بيع رقم 683 حمدى الجبلاو - حسن | I182: =SUMPRODUCT($F$2:F182,--($D$2:D182=D182),--($C$2:C182="Entree"))-SUMPRODUCT($F$2:F182,--($D$2:D182=D182),--($C$2:C182="Sortie")) -> -52
A183: 302 | B183: 2023-08-05 | C183: Entree | D183: مخزن12 | E183: بسكوت اهلاوى 2ج *12 علبة | F183: 200 | G183: مخزن12 | H183: تحويل وارد476من مخزن1لمخزن12 | I183: =SUMPRODUCT($F$2:F183,--($D$2:D183=D183),--($C$2:C183="Entree"))-SUMPRODUCT($F$2:F183,--($D$2:D183=D183),--($C$2:C183="Sortie")) -> 1099
A184: 96 | B184: 2023-08-05 | C184: Sortie | D184: مخزن1 | E184: بسكوت اهلاوى 2ج *12 علبة | F184: 250 | G184: مخزن11 | H184: ت صادر478من مخزن1لمخزن11 | I184: =SUMPRODUCT($F$2:F184,--($D$2:D184=D184),--($C$2:C184="Entree"))-SUMPRODUCT($F$2:F184,--($D$2:D184=D184),--($C$2:C184="Sortie")) -> 710
A185: 438 | B185: 2023-08-05 | C185: Sortie | D185: مخزن14 | E185: بسكوت اهلاوى 2ج *12 علبة | F185: 10 | G185: مخزن14 | H185: ت صادر513من مخزن14لمخزن1 | I185: =SUMPRODUCT($F$2:F185,--($D$2:D185=D185),--($C$2:C185="Entree"))-SUMPRODUCT($F$2:F185,--($D$2:D185=D185),--($C$2:C185="Sortie")) -> 4
A186: 134 | B186: 2023-08-05 | C186: Sortie | D186: مخزن1 | E186: بسكوت اهلاوى 2ج *12 علبة | F186: 15 | G186: مخزن14 | H186: ت صادر517من مخزن1لمخزن14 | I186: =SUMPRODUCT($F$2:F186,--($D$2:D186=D186),--($C$2:C186="Entree"))-SUMPRODUCT($F$2:F186,--($D$2:D186=D186),--($C$2:C186="Sortie")) -> 695
A187: 31 | B187: 2023-08-06 | C187: Sortie | D187: مخزن1 | E187: بسكوت اهلاوى 2ج *12 علبة | F187: 190 | G187: مخزن11 | H187: ت صادر387من مخزن1لمخزن11 | I187: =SUMPRODUCT($F$2:F187,--($D$2:D187=D187),--($C$2:C187="Entree"))-SUMPRODUCT($F$2:F187,--($D$2:D187=D187),--($C$2:C187="Sortie")) -> 505
A188: 32 | B188: 2023-08-06 | C188: Sortie | D188: مخزن1 | E188: بسكوت اهلاوى 2ج *12 علبة | F188: 150 | G188: مخزن12 | H188: ت صادر386من مخزن1لمخزن12 | I188: =SUMPRODUCT($F$2:F188,--($D$2:D188=D188),--($C$2:C188="Entree"))-SUMPRODUCT($F$2:F188,--($D$2:D188=D188),--($C$2:C188="Sortie")) -> 355
A189: 166 | B189: 2023-08-06 | C189: Entree | D189: مخزن11 | E189: بسكوت اهلاوى 2ج *12 علبة | F189: 190 | G189: مخزن11 | H189: تحويل وارد387من مخزن1لمخزن11 | I189: =SUMPRODUCT($F$2:F189,--($D$2:D189=D189),--($C$2:C189="Entree"))-SUMPRODUCT($F$2:F189,--($D$2:D189=D189),--($C$2:C189="Sortie")) -> 138
A190: 285 | B190: 2023-08-06 | C190: Sortie | D190: مخزن12 | E190: بسكوت اهلاوى 2ج *12 علبة | F190: 100 | G190: مخزن12 | H190: ف_بيع رقم 603 عطيتو - سيد | I190: =SUMPRODUCT($F$2:F190,--($D$2:D190=D190),--($C$2:C190="Entree"))-SUMPRODUCT($F$2:F190,--($D$2:D190=D190),--($C$2:C190="Sortie")) -> 999
A191: 286 | B191: 2023-08-06 | C191: Sortie | D191: مخزن12 | E191: بسكوت اهلاوى 2ج *12 علبة | F191: 100 | G191: مخزن12 | H191: ف_بيع رقم 604 على شركة - سيد | I191: =SUMPRODUCT($F$2:F191,--($D$2:D191=D191),--($C$2:C191="Entree"))-SUMPRODUCT($F$2:F191,--($D$2:D191=D191),--($C$2:C191="Sortie")) -> 899
A192: 389 | B192: 2023-08-06 | C192: Entree | D192: مخزن14 | E192: بسكوت اهلاوى 2ج *12 علبة | F192: 10 | G192: مخزن14 | H192: تحويل وارد445من مخزن1لمخزن14 | I192: =SUMPRODUCT($F$2:F192,--($D$2:D192=D192),--($C$2:C192="Entree"))-SUMPRODUCT($F$2:F192,--($D$2:D192=D192),--($C$2:C192="Sortie")) -> 14
A193: 97 | B193: 2023-08-06 | C193: Sortie | D193: مخزن1 | E193: بسكوت اهلاوى 2ج *12 علبة | F193: 6 | G193: مخزن12 | H193: ت صادر479من مخزن1لمخزن12 | I193: =SUMPRODUCT($F$2:F193,--($D$2:D193=D193),--($C$2:C193="Entree"))-SUMPRODUCT($F$2:F193,--($D$2:D193=D193),--($C$2:C193="Sortie")) -> 349
A194: 219 | B194: 2023-08-06 | C194: Entree | D194: مخزن11 | E194: بسكوت اهلاوى 2ج *12 علبة | F194: 250 | G194: مخزن11 | H194: تحويل وارد478من مخزن1لمخزن11 | I194: =SUMPRODUCT($F$2:F194,--($D$2:D194=D194),--($C$2:C194="Entree"))-SUMPRODUCT($F$2:F194,--($D$2:D194=D194),--($C$2:C194="Sortie")) -> 388
A195: 220 | B195: 2023-08-06 | C195: Sortie | D195: مخزن11 | E195: بسكوت اهلاوى 2ج *12 علبة | F195: 250 | G195: مخزن11 | H195: ف_بيع رقم 688 حمدى الجبلاو - حسن | I195: =SUMPRODUCT($F$2:F195,--($D$2:D195=D195),--($C$2:C195="Entree"))-SUMPRODUCT($F$2:F195,--($D$2:D195=D195),--($C$2:C195="Sortie")) -> 138
A196: 135 | B196: 2023-08-06 | C196: Sortie | D196: مخزن1 | E196: بسكوت اهلاوى 2ج *12 علبة | F196: 28 | G196: مخزن12 | H196: ت صادر518من مخزن1لمخزن12 | I196: =SUMPRODUCT($F$2:F196,--($D$2:D196=D196),--($C$2:C196="Entree"))-SUMPRODUCT($F$2:F196,--($D$2:D196=D196),--($C$2:C196="Sortie")) -> 321
A197: 325 | B197: 2023-08-06 | C197: Entree | D197: مخزن12 | E197: بسكوت اهلاوى 2ج *12 علبة | F197: 28 | G197: مخزن12 | H197: تحويل وارد518من مخزن1لمخزن12 | I197: =SUMPRODUCT($F$2:F197,--($D$2:D197=D197),--($C$2:C197="Entree"))-SUMPRODUCT($F$2:F197,--($D$2:D197=D197),--($C$2:C197="Sortie")) -> 927
A198: 167 | B198: 2023-08-07 | C198: Sortie | D198: مخزن11 | E198: بسكوت اهلاوى 2ج *12 علبة | F198: 200 | G198: مخزن11 | H198: ف_بيع رقم 495 المراسى - حسن | I198: =SUMPRODUCT($F$2:F198,--($D$2:D198=D198),--($C$2:C198="Entree"))-SUMPRODUCT($F$2:F198,--($D$2:D198=D198),--($C$2:C198="Sortie")) -> -62
A199: 257 | B199: 2023-08-07 | C199: Entree | D199: مخزن12 | E199: بسكوت اهلاوى 2ج *12 علبة | F199: 150 | G199: مخزن12 | H199: تحويل وارد386من مخزن1لمخزن12 | I199: =SUMPRODUCT($F$2:F199,--($D$2:D199=D199),--($C$2:C199="Entree"))-SUMPRODUCT($F$2:F199,--($D$2:D199=D199),--($C$2:C199="Sortie")) -> 1077
A200: 361 | B200: 2023-08-07 | C200: Sortie | D200: مخزن14 | E200: بسكوت اهلاوى 2ج *12 علبة | F200: 1 | G200: مخزن14 | H200: ف_بيع رقم 498 ماركت الرحمن - ابوبكر | I200: =SUMPRODUCT($F$2:F200,--($D$2:D200=D200),--($C$2:C200="Entree"))-SUMPRODUCT($F$2:F200,--($D$2:D200=D200),--($C$2:C200="Sortie")) -> 13
... 240 more rows

Sheet Feuil1
D1: Nom | E1: Nom | G1: Nom
D2: مخزن1 | E2: بسكوت اهلاوى 2ج *12 علبة | G2: مخزن1
D3: مخزن11
D4: مخزن12
D5: مخزن13
D6: مخزن14
D7: شركة سنيوريتا الغذائية
D8: سنيوريتا فرع الاقصر
D9: سنيوريتا فرع اسيوط
D10: عجز شركة سنيوريتا الرئيسى

Sheet Feuil2
A1: Client | B1: quantité | C1: quantité2 | D1: quantité3 | E1: quantité4
A2: Jean | B2: 50 | C2: 50 | D2: 50 | E2: 50
A3: Éric | B3: 10 | C3: 10 | D3: 10 | E3: 10
A4: Jean | B4: 15 | C4: 15 | D4: 15 | E4: 15
A5: Jean | B5: 20 | C5: 20 | D5: 20 | E5: 20
A6: Éric | B6: 25 | C6: 25 | D6: 25 | E6: 25
A7: Jean | B7: 30 | C7: 30 | D7: 30 | E7: 30
A8: Jean | B8: 35 | C8: 35 | D8: 35 | E8: 35
A9: Éric | B9: 20 | C9: 20 | D9: 20 | E9: 20
A10: Jean | B10: 45 | C10: 45 | D10: 45 | E10: 45
A11: Éric | B11: 5 | C11: 5 | D11: 5 | E11: 5

Sheet Feuil4

Sheet Sheet1
A1: DATE | B1: quantité3 | C1: quantité4 | D1: quantité5
A2: 2023-09-01 | B2: 50 | C2: 5
A3: 2023-09-02 | B3: 10 | C3: 3
A4: 2023-09-03 | B4: 15 | C4: 4
A5: 2023-09-04 | B5: 20 | C5: 8
A6: 2023-09-05 | B6: 25 | C6: 96
A7: 2023-09-06 | B7: 30 | C7: 4
A8: 2023-09-07 | B8: 35 | C8: 4
A9: 2023-09-08 | B9: 20 | C9: 96
A10: 2023-09-09 | B10: 45 | C10: 4
A11: 2023-09-10 | B11: 5 | C11: 87

Sheet Sheet2

Sheet Sheet3
M2: مخزن14
M3: سنيوريتا فرع اسيوط
M5: مخزن11
M8: مخزن12
M12: مخزن14
M13: مخزن11
M14: مخزن12
M19: مخزن1
M20: مخزن11
M21: مخزن1
M26: مخزن14
M28: وريتا فرع الاقصر
M31: مخزن14
M32: وريتا فرع الاقصر
M33: وريتا فرع الاقصر
M34: مخزن12
M35: مخزن12
M36: مخزن11
M37: مخزن14
M48: مخزن12
M49: مخزن12
M50: وريتا فرع الاقصر
M57: وريتا فرع اسيوط
M60: وريتا فرع اسيوط
M61: مخزن11
M62: مخزن12
M63: وريتا فرع الاقصر
M64: مخزن11
M69: مخزن12
M70: مخزن11
M71: مخزن12
M76: مخزن14
M77: مخزن11
M83: مخزن11
M86: مخزن12
M87: مخزن12
M88: مخزن11
M96: ة سنيوريتا الغذائية
M97: مخزن11
M108: مخزن12
M109: مخزن11
M110: مخزن12
M117: مخزن11
M118: وريتا فرع اسيوط
M123: مخزن14
M138: مخزن11
M139: وريتا فرع الاقصر
M140: مخزن14
M145: مخزن11
M146: مخزن11
M147: مخزن1
M152: مخزن12
M156: مخزن14
M158: مخزن14
M159: مخزن11
M166: ة سنيوريتا الغذائية
M170: مخزن12
M173: مخزن14
M174: مخزن12
M175: مخزن11
M176: شركة سنيوريتا الرئيسى
M187: مخزن11
M188: مخزن14
M189: ة سنيوريتا الغذائية
M198: مخزن11
M199: مخزن12
M200: مخزن14
M212: مخزن12
M214: مخزن11
M215: مخزن11
M216: مخزن12
M224: مخزن12
M225: مخزن14
M231: مخزن12
M232: مخزن14
M238: مخزن11
M244: وريتا فرع اسيوط
M245: مخزن11
M250: مخزن12
M251: مخزن11
M256: مخزن11
M257: مخزن12
M258: وريتا فرع الاقصر
M264: مخزن11
M268: مخزن12
M269: مخزن11
M270: مخزن11
M274: مخزن12
M275: وريتا فرع الاقصر
M280: وريتا فرع اسيوط
M283: مخزن12
M284: مخزن11
M285: مخزن12
M286: مخزن12
M290: مخزن12
M292: مخزن11
M293: مخزن1
M297: مخزن12
M301: مخزن1
M303: مخزن14
M306: مخزن11
M307: مخزن12
M308: مخزن14
M313: مخزن12
M314: مخزن12
M315: مخزن11
M325: مخزن12
M326: وريتا فرع اسيوط
M327: مخزن14
M335: مخزن12
M336: مخزن11
M337: مخزن11
M344: مخزن12
M350: مخزن1
M352: مخزن12
M353: مخزن14
M354: مخزن12
M363: مخزن12
M364: مخزن11
M371: ة سنيوريتا الغذائية
M372: مخزن12
M378: مخزن12
M379: مخزن12
M386: ة سنيوريتا الغذائية
M387: مخزن12
M388: مخزن11
M395: مخزن12
M398: مخزن11
M401: مخزن12
M406: مخزن11
M407: مخزن14
M408: مخزن1
M412: مخزن1
M413: مخزن12
M419: مخزن12
M420: مخزن14

Sheet Sheet4
A1: تقرير عن رصيد مادة
A3: م | B3: رقم الصنف | C3: أسم الصنف | D3: الوارد | E3: الصادر
